Workbook

Sheet FORS
A4: STATISTIKK
A7: FOR
A10: MÅLEVIRKSOMHETEN
A14: 2018
A15: NB: Alle timefortjenester er før eventuelt trekk av målegebyr | I15: Passord dokumentbeskyttelse:<Retur>

Sheet ÅRSTOT
A2: ="MÅLESTATISTIKK ALLE BYGGFAG - 1. HALVÅR "&FORS!$A$14 -> MÅLESTATISTIKK ALLE BYGGFAG - 1. HALVÅR 2018
B4: Målesum i kroner | D4: Timer | F4: ="Fortjeneste 1. halvår "&FORS!$A$14-0 -> Fortjeneste 1. halvår 2018 | I4: =" 1. halvår "&FORS!$A$14-1 -> 1. halvår 2017 | L4: Endringer i %
B5: Innmålt m/ | C5: Innmålt m/ | D5: Innmålt m/ | E5: Innmålt m/ | F5: Innmålt m/ | G5: Innmålt m/ | H5: Gjennom- | I5: Innmålt m/ | J5: Innmålt m/ | K5: Gjen.snitt | L5: Innmålt m/ | M5: Gjen.snitt
B6: overskudd | C6: underskudd | D6: overskudd | E6: underskudd | F6: overskudd | G6: underskudd | H6: snitt | I6: overskudd | J6: underskudd | K6: fortjeneste | L6: overskudd | M6: fortjeneste
A7: Agder | B7: =BETONG!B7+TØMRERE!B7+MALERE!B7+TAKTEKKERE!B7+MURERE!B7 -> 3587245 | C7: =BETONG!C7+TØMRERE!C7+MALERE!C7+TAKTEKKERE!C7+MURERE!C7 -> 0 | D7: =BETONG!D7+TØMRERE!D7+MALERE!D7+TAKTEKKERE!D7+MURERE!D7 -> 11576 | E7: =BETONG!E7+TØMRERE!E7+MALERE!E7+TAKTEKKERE!E7+MURERE!E7 -> 0 | F7: =IF(D7=0,0,B7/D7) -> 309.8864029 | G7: 0 | H7: =IF(D7+E7=0,0,(B7+C7)/(D7+E7)) -> 309.8864029 | I7: 5186834 | J7: 0 | K7: 285.01 | L7: =IF(I7=0,0,(B7-I7)/I7) -> -0.3083940994 | M7: =(H7-K7)/K7 -> 0.08728256167
A8: Bergen | B8: =BETONG!B8+TØMRERE!B8+MALERE!B8+RØRLEGGERE!B7+MURERE!B8+TAKTEKKERE!B11 -> 19693534.96 | C8: =BETONG!C8+TØMRERE!C8+MALERE!C8+RØRLEGGERE!C7+MURERE!C8+TAKTEKKERE!C11 -> 0 | D8: =BETONG!D8+TØMRERE!D8+MALERE!D8+RØRLEGGERE!D7+MURERE!D8+TAKTEKKERE!D11 -> 70133.07 | E8: =BETONG!E8+TØMRERE!E8+MALERE!E8+RØRLEGGERE!E7+MURERE!E8+TAKTEKKERE!E11 -> 0 | F8: =IF(D8=0,0,B8/D8) -> 280.8024083 | G8: =IF(E8=0,0,C8/E8) -> 0 | H8: =IF(D8+E8=0,0,(B8+C8)/(D8+E8)) -> 280.8024083 | I8: 23286395 | J8: =C8 -> 0 | K8: 274.97 | L8: =IF(I8=0,0,(B8-I8)/I8) -> -0.1542900926 | M8: =(H8-K8)/K8 -> 0.02121107152
A9: Drammen - Bærum | B9: =BETONG!B9+TØMRERE!B9 -> 0 | C9: =BETONG!C9+TØMRERE!C9 -> 0 | D9: =BETONG!D9+TØMRERE!D9 -> 0 | E9: =BETONG!E9+TØMRERE!E9 -> 0 | F9: 0 | G9: 0 | H9: 0 | J9: 0 | L9: =IF(I32=0,0,(B9-I32)/I32) -> 0 | M9: =(H9-K32)/K32 -> 
B10: =BETONG!B10+TØMRERE!B10+TAKTEKKERE!B9+MURERE!B9+MALERE!B9 -> 0 | C10: =BETONG!C10+TØMRERE!C10+TAKTEKKERE!C9+MURERE!C9+MALERE!C9 -> 0 | D10: =BETONG!D10+TØMRERE!D10+TAKTEKKERE!D9+MURERE!D9+MALERE!D9 -> 0 | E10: =BETONG!E10+TØMRERE!E10+TAKTEKKERE!E9+MURERE!E9+MALERE!E9 -> 0 | F10: 0 | G10: 0 | H10: 0 | J10: 0
A11: Haugesund | B11: =BETONG!B11+'BLIKK OG VENTILASJON'!B7+TAKTEKKERE!B8 -> 6287106 | C11: =BETONG!C11++'BLIKK OG VENTILASJON'!C7+TAKTEKKERE!C8 -> 0 | D11: =BETONG!D11++'BLIKK OG VENTILASJON'!D7+TAKTEKKERE!D8 -> 23894.44 | E11: =BETONG!E11++'BLIKK OG VENTILASJON'!E7+TAKTEKKERE!E8 -> 0 | F11: 263.1200396 | G11: 0 | H11: 263.1200396 | I11: 9497061 | J11: 0 | K11: 265.78 | L11: -0.3379945648 | M11: -0.01000812837
A12: Hamar og Omegn | B12: =BETONG!B12+TØMRERE!B11+MALERE!B10+TAKTEKKERE!B10+MURERE!B10 -> 16604224.92 | C12: =BETONG!C12+TØMRERE!C11+MALERE!C10+TAKTEKKERE!C10+MURERE!C10 -> 0 | D12: =BETONG!D12+TØMRERE!D11+MALERE!D10+TAKTEKKERE!D10+MURERE!D10 -> 57802.32 | E12: =BETONG!E12+TØMRERE!E11+MALERE!E10+TAKTEKKERE!E10+MURERE!E10 -> 0 | F12: 287.2587972 | G12: 0 | H12: 287.2587972 | I12: 12741921 | J12: 861127 | K12: 282.51 | L12: 0.3031178674 | M12: 0.01680930666
A13: Nordland | B13: =BETONG!B13+TØMRERE!B12+MALERE!B11+RØRLEGGERE!B8+MURERE!B11+TAKTEKKERE!B12 -> 0 | C13: =BETONG!C13+TØMRERE!C12+MALERE!C11+RØRLEGGERE!C22+MURERE!C11+TAKTEKKERE!C12 -> 2314573.07 | D13: =BETONG!D13+TØMRERE!D12+MALERE!D11+RØRLEGGERE!D22+MURERE!D11+TAKTEKKERE!D12 -> 0 | E13: =BETONG!E13+TØMRERE!E12+MALERE!E11+RØRLEGGERE!E22+MURERE!E11+TAKTEKKERE!E12 -> 11009 | F13: 0 | G13: 210.2437161 | H13: 210.2437161 | L13: 0
A14: Sandnes | B14: =BETONG!B14 -> 14761530.04 | C14: =BETONG!C14+MALERE!C12 -> 0 | D14: =BETONG!D14+MALERE!D12 -> 45914.15 | E14: =BETONG!E14+MALERE!E12 -> 0 | F14: 321.5028491 | G14: 0 | H14: 321.5028491 | I14: 25854094 | J14: 0 | K14: 294.33 | L14: -0.4290447757 | M14: 0.09232103123
A15: Stavanger | B15: =BETONG!B15+TØMRERE!B13+RØRLEGGERE!B9+'BLIKK OG VENTILASJON'!B8+TAKTEKKERE!B13+MURERE!B12 -> 6290263.8 | C15: =BETONG!C15+TØMRERE!C13+RØRLEGGERE!C9+'BLIKK OG VENTILASJON'!C8+TAKTEKKERE!C13+MURERE!C12 -> 264163.96 | D15: =BETONG!D15+TØMRERE!D13+RØRLEGGERE!D9+'BLIKK OG VENTILASJON'!D8+TAKTEKKERE!D13+MURERE!D12 -> 21065 | E15: =BETONG!E15+TØMRERE!E13+RØRLEGGERE!E9+'BLIKK OG VENTILASJON'!E8+TAKTEKKERE!E13+MURERE!E12 -> 1589.5 | F15: 298.6120959 | G15: 166.1931173 | H15: 289.321228 | I15: 5523085 | J15: 81095 | K15: 304.76 | L15: 0.1389040364 | M15: -0.0506587872
A16: Telemark | B16: =BETONG!B16+TØMRERE!B14+MALERE!B13+TAKTEKKERE!B14+MURERE!B14 -> 18089589 | C16: =BETONG!C16+TØMRERE!C14+MALERE!C10+TAKTEKKERE!C14+MURERE!C14 -> 173440 | D16: =BETONG!D16+TØMRERE!D14+MALERE!D13+TAKTEKKERE!D14+MURERE!D14 -> 61616.7 | E16: =BETONG!E16+TØMRERE!E14+MALERE!E13+TAKTEKKERE!E14+MURERE!E14 -> 896.5 | F16: 293.5825677 | G16: 193.463469 | H16: 292.1467626 | I16: 19242486 | J16: 347493 | K16: 302.9 | L16: -0.05991413999 | M16: -0.03550094882
A17: Tromsø | B17: =BETONG!B17+MALERE!B14+RØRLEGGERE!B10+TØMRERE!B16+MURERE!B13 -> 0 | C17: =BETONG!C17+MALERE!C14+RØRLEGGERE!C10+TØMRERE!C16+MURERE!C13 -> 0 | D17: =BETONG!D17+MALERE!D14+RØRLEGGERE!D10+TØMRERE!D16+MURERE!D13 -> 0 | E17: =BETONG!E17+MALERE!E14+RØRLEGGERE!E10+TØMRERE!E16+MURERE!E13 -> 0 | F17: 0 | G17: 0 | H17: 0 | J17: 0
A18: Trondheim | B18: =BETONG!B18+TØMRERE!B15+MALERE!B15+RØRLEGGERE!B11+TAKTEKKERE!B15+MURERE!B15 -> 155198811 | C18: =BETONG!C18+TØMRERE!C15+MALERE!C15+RØRLEGGERE!C11+TAKTEKKERE!C15+MURERE!C15 -> 7964896.74 | D18: =BETONG!D18+TØMRERE!D15+MALERE!D15+RØRLEGGERE!D11+TAKTEKKERE!D15+MURERE!D15 -> 520620.81 | E18: =BETONG!E18+TØMRERE!E15+MALERE!E15+RØRLEGGERE!E11+TAKTEKKERE!E15+MURERE!E15 -> 43327.39 | F18: 298.1033566 | G18: 183.8305224 | H18: 289.3239268 | I18: 175140724 | J18: 9666677 | K18: 282.68 | L18: -0.1138622278 | M18: 0.02350334927
A19: Vestfold | B19: =BETONG!B19+TØMRERE!B17+MALERE!B16+TAKTEKKERE!B16+MURERE!B16 -> 4567559.75 | C19: =BETONG!C19+TØMRERE!C17+MALERE!C16+TAKTEKKERE!C16 -> 776347 | D19: =BETONG!D19+TØMRERE!D17+MALERE!D16+TAKTEKKERE!D16 -> 14864.5 | E19: =BETONG!E19+TØMRERE!E17 -> 4424 | F19: 307.2797437 | G19: 175.4853074 | H19: 277.0514426 | I19: 3193365 | J19: 379041 | K19: 262.17 | L19: 0.4303281178 | M19: 0.05676256845
A20: Østfold | B20: =BETONG!B20+TØMRERE!B18+MURERE!B18 -> 18546338.5 | C20: =BETONG!C20+TØMRERE!C18+MURERE!C18 -> 3866476 | D20: =BETONG!D20+TØMRERE!D18+MURERE!D18 -> 65090.5 | E20: =BETONG!E20+TØMRERE!E18+MURERE!E18 -> 19775 | F20: 284.9315722 | G20: 195.5234387 | H20: 264.0980669 | I20: 13729164 | J20: 418602 | K20: 286.06 | L20: 0.3508716554 | M20: -0.07677386932
A21: Oslo | B21: =BETONG!B21+TØMRERE!B19+MALERE!B17+RØRLEGGERE!B12+TAKTEKKERE!B17+MURERE!B17 -> 88543589.55 | C21: =BETONG!C21+TØMRERE!C19+MALERE!C17+RØRLEGGERE!C12+TAKTEKKERE!C17+MURERE!C17 -> 3469766.48 | D21: =BETONG!D21+TØMRERE!D19+MALERE!D17+TAKTEKKERE!D17+MURERE!D17+RØRLEGGERE!D12 -> 265094.4 | E21: =BETONG!E21+TØMRERE!E19+MALERE!E17+RØRLEGGERE!E12+TAKTEKKERE!E17+MURERE!E17 -> 16954.73 | F21: 334.0077706 | G21: 204.6488785 | H21: 326.2316605 | I21: 88156005 | J21: 9204727 | K21: 306.11 | L21: 0.004396575707 | M21: 0.06573343088
A22: Landet i alt | B22: =SUM(B7:B21) -> 352169792.5 | C22: =SUM(C7:C21) -> 18829663.25 | D22: =SUM(D7:D21) -> 1157671.89 | E22: =SUM(E7:E21) -> 97976.12 | F22: 304.2051859 | G22: 192.1862516 | H22: 295.4645353 | I22: =SUM(I7:I21) -> 381551134 | J22: =SUM(J7:J21) -> 20958762 | K22: 289.04 | L22: -0.07700499063 | M22: 0.02222714946
A25: ="MÅLESTATISTIKK FOR ALLE BYGGFAG - 2. HALVÅR "&FORS!$A$14 -> MÅLESTATISTIKK FOR ALLE BYGGFAG - 2. HALVÅR 2018
B27: Målesum i kroner | D27: Timer | F27: ="Fortjeneste 2. halvår "&FORS!$A$14-0 -> Fortjeneste 2. halvår 2018 | I27: =" 2. halvår "&FORS!$A$14-1 -> 2. halvår 2017 | L27: Endringer i %
B28: Innmålt m/ | C28: Innmålt m/ | D28: Innmålt m/ | E28: Innmålt m/ | F28: Innmålt m/ | G28: Innmålt m/ | H28: Gjennom- | I28: Innmålt m/ | J28: Innmålt m/ | K28: Gjen.snitt | L28: Innmålt m/ | M28: Gjen.snitt
B29: overskudd | C29: underskudd | D29: overskudd | E29: underskudd | F29: overskudd | G29: underskudd | H29: snitt | I29: overskudd | J29: underskudd | K29: fortjeneste | L29: overskudd | M29: fortjeneste
A30: Agder | B30: =BETONG!B30+TØMRERE!B28+TAKTEKKERE!B26 -> 13976972 | C30: =BETONG!C30+TØMRERE!C28+MALERE!C26+TAKTEKKERE!C26+MURERE!C27 -> 0 | D30: =BETONG!D30+TØMRERE!D28+MALERE!D26+TAKTEKKERE!D26+MURERE!D27 -> 46486.6 | E30: =BETONG!E30+TØMRERE!E28+MALERE!E26+TAKTEKKERE!E26+MURERE!E27 -> 0 | F30: =IF(D30=0,0,B30/D30) -> 300.6666867 | G30: =IF(E30=0,0,C30/E30) -> 0 | H30: =IF(D30+E30=0,0,(B30+C30)/(D30+E30)) -> 300.6666867 | I30: 1880451 | K30: 317.59 | L30: =IF(I30=0,0,(B30-I30)/I30) -> 6.432776499 | M30: =(H30-K30)/K30 -> -0.05328666915
A31: Bergen | B31: =BETONG!B31+TØMRERE!B29+MALERE!B27+RØRLEGGERE!B21+MURERE!B28+TAKTEKKERE!B30 -> 12738332.15 | C31: =BETONG!C31+TØMRERE!C29+MALERE!C27+RØRLEGGERE!C21+MURERE!C28+TAKTEKKERE!C30 -> 0 | D31: =BETONG!D31+TØMRERE!D29+MALERE!D27+RØRLEGGERE!D21+MURERE!D28+TAKTEKKERE!D30 -> 43853.22 | E31: =BETONG!E31+TØMRERE!E29+MALERE!E27+RØRLEGGERE!E21+MURERE!E28+TAKTEKKERE!E30 -> 0 | F31: 290.4765522 | G31: 0 | H31: 290.4765522 | I31: 35095938 | J31: 0 | K31: 275.06 | L31: =IF(I31=0,0,(B31-I31)/I31) -> -0.6370425503 | M31: =(H31-K31)/K31 -> 0.0560479613
A32: Drammen - Bærum | B32: =BETONG!B32+TØMRERE!B30 -> 0 | C32: =BETONG!C32+TØMRERE!C30 -> 0 | D32: =BETONG!D32+TØMRERE!D30 -> 0 | E32: =BETONG!E32+TØMRERE!E30 -> 0 | F32: 0 | G32: 0 | H32: 0 | J32: 0 | L32: =IF(I32=0,0,(B32-I32)/I32) -> 0
B33: =BETONG!B33+TØMRERE!B31+TAKTEKKERE!B28+MURERE!B29+MALERE!B28 -> 0 | C33: =BETONG!C33+TØMRERE!C31+TAKTEKKERE!C28+MURERE!C29+MALERE!C28 -> 0 | D33: =BETONG!D33+TØMRERE!D31+TAKTEKKERE!D28+MURERE!D29+MALERE!D28 -> 0 | E33: =BETONG!E33+TØMRERE!E31+TAKTEKKERE!E28+MURERE!E29+MALERE!E28 -> 0 | F33: 0 | G33: 0 | H33: 0 | J33: 0 | L33: =IF(I33=0,0,(B33-I33)/I33) -> 0
A34: Haugesund | B34: =BETONG!B34+TAKTEKKERE!B27 -> 10638372 | C34: =BETONG!C34+TAKTEKKERE!C27 -> 0 | D34: =BETONG!D34+TAKTEKKERE!D27 -> 38691.44 | E34: =BETONG!E34+TAKTEKKERE!E27 -> 0 | F34: 274.9541501 | G34: 0 | H34: 274.9541501 | I34: 7435876 | J34: 0 | K34: 257 | L34: 0.4306817381 | M34: 0.06986050609
A35: Hamar og Omegn | B35: =BETONG!B35+TØMRERE!B32+MALERE!B29+TAKTEKKERE!B29+MURERE!B30 -> 24307464.51 | C35: =BETONG!C35+TØMRERE!C32+MALERE!C29+TAKTEKKERE!C29+MURERE!C30 -> 0 | D35: =BETONG!D35+TØMRERE!D32+MALERE!D29+TAKTEKKERE!D29+MURERE!D30 -> 97004.45 | E35: =BETONG!E35+TØMRERE!E32+MALERE!E29+TAKTEKKERE!E29+MURERE!E30 -> 0 | F35: 250.5809219 | G35: 0 | H35: 250.5809219 | I35: 14136731 | J35: 9457 | K35: 275.66 | L35: 0.7194544135 | M35: -0.09097829969
A36: Nordland | B36: =BETONG!B36+TØMRERE!B33+MALERE!B30+RØRLEGGERE!B22+MURERE!B31+TAKTEKKERE!B31+'BLIKK OG VENTILASJON'!B18 -> 0 | C36: =BETONG!C36+TØMRERE!C33+MALERE!C30+RØRLEGGERE!C22+MURERE!C31+TAKTEKKERE!C31+'BLIKK OG VENTILASJON'!C18 -> 2314573.07 | D36: =BETONG!D36+TØMRERE!D33+MALERE!D30+RØRLEGGERE!D22+MURERE!D31+TAKTEKKERE!D31+'BLIKK OG VENTILASJON'!D18 -> 0 | E36: =BETONG!E36+TØMRERE!E33+MALERE!E30+RØRLEGGERE!E22+MURERE!E31+TAKTEKKERE!E31+'BLIKK OG VENTILASJON'!E18 -> 11009 | F36: 0 | G36: 210.2437161 | H36: 210.2437161 | J36: 0 | L36: 0
A37: Sandnes | B37: =BETONG!B37+MALERE!B31 -> 11820104.98 | C37: =BETONG!C37++MALERE!C31 -> 0 | D37: =BETONG!D37++MALERE!D31 -> 37496.16 | E37: =BETONG!E37++MALERE!E31 -> 0 | F37: 315.2350795 | G37: 0 | H37: 315.2350795 | I37: 35988201 | J37: 0 | K37: 293.21 | L37: -0.6715561031 | M37: 0.07511708175
A38: Stavanger | B38: =BETONG!B38+TØMRERE!B34+RØRLEGGERE!B23+'BLIKK OG VENTILASJON'!B19+TAKTEKKERE!B32+MURERE!B32 -> 6310055 | C38: =BETONG!C38+TØMRERE!C34+RØRLEGGERE!C23+'BLIKK OG VENTILASJON'!C19+TAKTEKKERE!C32+MURERE!C32 -> 503422 | D38: =BETONG!D38+TØMRERE!D34+RØRLEGGERE!D23+'BLIKK OG VENTILASJON'!D19+TAKTEKKERE!D32+MURERE!D32 -> 21215 | E38: =BETONG!E38+TØMRERE!E34+RØRLEGGERE!E23+'BLIKK OG VENTILASJON'!E19+TAKTEKKERE!E32+MURERE!E32 -> 2888 | F38: 297.4336554 | G38: 174.315097 | H38: 282.6816994 | I38: 5333805 | J38: 109573 | K38: 309.93 | L38: 0.1830306882 | M38: -0.08791759632
A39: Telemark | B39: =BETONG!B39+TØMRERE!B35+MALERE!B32+TAKTEKKERE!B33+MURERE!B34 -> 13966127 | C39: =BETONG!C39+TØMRERE!C35+MALERE!C32+TAKTEKKERE!C33 -> 0 | D39: =BETONG!D39+TØMRERE!D35+MALERE!D32+TAKTEKKERE!D33+MURERE!D34 -> 45146.5 | E39: =BETONG!E39+TØMRERE!E35+MALERE!E32+TAKTEKKERE!E33+MURERE!E34 -> 0 | F39: =IF(D39=0,0,B39/D39) -> 309.3512675 | G39: 0 | H39: 309.3512675 | I39: 9616986 | J39: 2613000 | K39: 273.2 | L39: 0.4522353469 | M39: 0.1323252838
B40: =BETONG!B40+MALERE!B33+RØRLEGGERE!B24+TØMRERE!B37+MURERE!B33 -> 0 | C40: =BETONG!C40+MALERE!C33+RØRLEGGERE!C24+TØMRERE!C37+MURERE!C33 -> 0 | E40: =BETONG!E40+MALERE!E33+RØRLEGGERE!E24+TØMRERE!E37+MURERE!E33 -> 0 | F40: =IF(D40=0,0,B40/D40) -> 0 | G40: 0 | H40: 0 | J40: 0 | L40: 0
A41: Trondheim | B41: =BETONG!B41+TØMRERE!B36+MALERE!B34+RØRLEGGERE!B25+TAKTEKKERE!B34+MURERE!B35 -> 155183944.6 | C41: =BETONG!C41+TØMRERE!C36+MALERE!C34+RØRLEGGERE!C25+TAKTEKKERE!C34+MURERE!C35 -> 27574250.28 | D41: =BETONG!D41+TØMRERE!D36+MALERE!D34+RØRLEGGERE!D25+TAKTEKKERE!D34+MURERE!D35 -> 510499.07 | E41: =BETONG!E41+TØMRERE!E36+MALERE!E34+RØRLEGGERE!E25+TAKTEKKERE!E34+MURERE!E35 -> 133129.02 | F41: =IF(B41=0,0,B41/D41) -> 303.9847744 | G41: =IF(E41=0,0,C41/E41) -> 207.124264 | H41: 283.9499981 | I41: 171978621 | J41: 8927118 | K41: 291.22 | L41: -0.09765560552 | M41: -0.02496395143
A42: Vestfold | B42: =BETONG!B42+TØMRERE!B38+MALERE!B35+MURERE!B36+TAKTEKKERE!B35 -> 7055474.11 | C42: =BETONG!C42+TØMRERE!C38+MALERE!C35+MURERE!C36+TAKTEKKERE!C35 -> 0 | D42: =BETONG!D42+TØMRERE!D38+MALERE!D35+MURERE!D36+TAKTEKKERE!D35 -> 23195 | E42: =BETONG!E42+TØMRERE!E38+MALERE!E35+MURERE!E36+TAKTEKKERE!E35 -> 0 | F42: =IF(D42=0,0,B42/D42) -> 304.1808196 | G42: 0 | H42: 304.1808196 | I42: 6581036 | K42: 271.46 | L42: 0.07209170562 | M42: 0.1205364311
A43: Østfold | B43: =BETONG!B43+TØMRERE!B39+MURERE!B38 -> 8770972.5 | C43: =BETONG!C43+TØMRERE!C39+MURERE!C38 -> 3256160 | D43: =BETONG!D43+TØMRERE!D39+MURERE!D38 -> 28245.5 | E43: =BETONG!E43+TØMRERE!E39+MURERE!E38 -> 15134 | F43: 310.526367 | G43: 215.1552795 | H43: 277.2538296 | I43: 14328906 | J43: 373989 | K43: 141.02 | L43: -0.387882613 | M43: 0.966060343
A44: Oslo | B44: =BETONG!B44+TØMRERE!B40+MALERE!B36+RØRLEGGERE!B25+TAKTEKKERE!B36+MURERE!B37 -> 103063339 | C44: =BETONG!C44+TØMRERE!C40+MALERE!C36+RØRLEGGERE!C26+TAKTEKKERE!C36+MURERE!C37 -> 10019963.76 | D44: =BETONG!D44+TØMRERE!D40+MALERE!D36+RØRLEGGERE!D26+MURERE!D37+TAKTEKKERE!D36 -> 345385.2 | E44: =BETONG!E44+TØMRERE!E40+MALERE!E36+RØRLEGGERE!E26+'BLIKK OG VENTILASJON'!E20+TAKTEKKERE!E36+MURERE!E37 -> 47076.8 | F44: 298.4011447 | G44: 212.8429239 | H44: 288.1382218 | I44: 84583828 | J44: 2111107 | K44: 215.44 | L44: 0.2184757 | M44: 0.3374406877
A45: Landet i alt | B45: =SUM(B30:B44) -> 367831157.9 | C45: =SUM(C30:C44) -> 43668369.11 | D45: =SUM(D30:D44) -> 1237218.14 | E45: =SUM(E30:E44) -> 209236.82 | F45: =IF(D45=0,0,B45/D45) -> 297.3050152 | G45: 208.7030816 | H45: 284.48831 | I45: =SUM(I30:I44) -> 386960379 | J45: =SUM(J30:J44) -> 14144244 | K45: 263.01 | L45: -0.04943457296 | M45: 0.08166347276
A48: ="MÅLESTATISTIKK FOR ALLE BYGGFAG - GJENNOMSNITT HELE ÅRET "&FORS!$A$14 -> MÅLESTATISTIKK FOR ALLE BYGGFAG - GJENNOMSNITT HELE ÅRET 2018
B50: Målesum i kroner | D50: Timer | F50: ="Fortjeneste hele "&FORS!$A$14-0 -> Fortjeneste hele 2018 | I50: =" Hele året "&FORS!$A$14-1 -> Hele året 2017 | L50: Endringer i %
B51: Innmålt m/ | C51: Innmålt m/ | D51: Innmålt m/ | E51: Innmålt m/ | F51: Innmålt m/ | G51: Innmålt m/ | H51: Gjennom- | I51: Innmålt m/ | J51: Innmålt m/ | K51: Gjen.snitt | L51: Innmålt m/ | M51: Gjen.snitt
B52: overskudd | C52: underskudd | D52: overskudd | E52: underskudd | F52: overskudd | G52: underskudd | H52: snitt | I52: overskudd | J52: underskudd | K52: fortjeneste | L52: overskudd | M52: fortjeneste
A53: Agder | B53: =B7+B30 -> 17564217 | C53: =C7+C30 -> 0 | D53: =D7+D30 -> 58062.6 | E53: 0 | F53: =IF(D53=0,0,B53/D53) -> 302.504831 | G53: =IF(E53=0,0,C53/E53) -> 0 | H53: =IF(D53+E53=0,0,(B53+C53)/(D53+E53)) -> 302.504831 | I53: =I7+I30 -> 7067285 | J53: =J7+J30 -> 0 | K53: 293.01 | L53: =IF(I53=0,0,(B53-I53)/I53) -> 1.485284943 | M53: =(H53-K53)/K53 -> 0.03240446057
A54: Bergen | B54: =B8+B31 -> 32431867.11 | C54: 0 | D54: 113986.29 | E54: 0 | F54: 284.5242802 | G54: 0 | H54: 284.5242802 | I54: =I8+I31 -> 58382333 | J54: 0 | K54: 275.03 | L54: =IF(I54=0,0,(B54-I54)/I54) -> -0.444491759 | M54: =(H54-K54)/K54 -> 0.0345208892
A55: Drammen - Bærum | B55: =B9+B32 -> 0 | C55: 0 | D55: 0 | E55: 0 | F55: 0 | G55: 0 | H55: 0 | I55: 0 | J55: 0 | L55: 0
B56: =B10+B33 -> 0 | C56: 0 | D56: 0 | E56: 0 | F56: 0 | G56: 0 | H56: 0 | I56: 0 | J56: 0 | L56: 0
A57: Haugesund | B57: =B11+B34 -> 16925478 | C57: 0 | D57: 62585.88 | E57: 0 | F57: 270.4360472 | G57: 0 | H57: 270.4360472 | I57: 16932937 | J57: 0 | K57: 261.85 | L57: -0.0004405024362 | M57: 0.03278994553
A58: Hamar og Omegn | B58: =B12+B35 -> 40911689.43 | C58: 0 | D58: 154806.77 | E58: 0 | F58: 264.2758416 | G58: 0 | H58: 264.2758416 | I58: 26878652 | J58: 870584 | K58: 278.98 | L58: 0.5220885865 | M58: -0.05270685491
A59: Nordland | B59: =B13+B36 -> 0 | C59: 4629146.14 | D59: 0 | E59: 22018 | F59: 0 | G59: 210.2437161 | H59: 210.2437161 | I59: 0 | J59: 0 | L59: 0
A60: Sandnes | B60: 26581635.02 | C60: 0 | D60: 83410.31 | E60: 0 | F60: 318.6852443 | G60: 0 | H60: 318.6852443 | I60: 61842295 | J60: 0 | K60: 293.68 | L60: -0.5701706248 | M60: 0.0851445257
A61: Stavanger | B61: 12600318.8 | C61: 767585.96 | D61: 42280 | E61: 4477.5 | F61: 298.0207852 | G61: 171.4318169 | H61: 285.8986208 | I61: 10856890 | J61: 190668 | K61: 307.29 | L61: 0.1605827083 | M61: -0.06961300154
A62: Telemark | B62: 32055716 | C62: 173440 | D62: 106763.2 | E62: 896.5 | F62: 300.2506107 | G62: 193.463469 | H62: 299.3613766 | I62: 28859472 | J62: 2960493 | K62: 290.75 | L62: 0.1107519916 | M62: 0.02961780442
A63: Tromsø | B63: 0 | C63: 0 | D63: 0 | E63: 0 | F63: 0 | G63: 0 | H63: 0 | I63: 0 | J63: 0 | L63: 0
A64: Trondheim | B64: =B18+B41 -> 310382755.6 | C64: 35539147.02 | D64: 1031119.88 | E64: 176456.41 | F64: 301.0151987 | G64: 201.4046813 | H64: 286.4596676 | I64: =I18+I41 -> 347119345 | J64: 18593795 | K64: 286.82 | L64: -0.1058327342 | M64: -0.001256301528
A65: Vestfold | B65: =B19+B42 -> 11623033.86 | C65: 776347 | D65: =D19+D42 -> 38059.5 | E65: =E19+E42 -> 4424 | F65: =IF(D65=0,0,B65/D65) -> 305.3911339 | G65: =IF(E65=0,0,C65/E65) -> 175.4853074 | H65: 291.8634496 | I65: 9774401 | J65: 379041 | K65: 268.12 | L65: =IF(I65=0,0,(B65-I65)/I65) -> 0.1891300408 | M65: 0.08855530947
A66: Østfold | B66: =B20+B43 -> 27317311 | C66: =C20+C43 -> 7122636 | D66: =D20+D43 -> 93336 | E66: 34909 | F66: 292.6771128 | G66: 204.0343751 | H66: 268.5480682 | I66: 28058070 | J66: 792591 | K66: 187.69 | L66: -0.02640092494 | M66: 0.4308064796
A67: Oslo | B67: =B21+B44 -> 191606928.6 | C67: 13489730.24 | D67: =D21+D44 -> 610479.6 | E67: 64031.53 | F67: 313.8629507 | G67: 210.6732455 | H67: =IF(D67+E67=0,0,(B67+C67)/(D67+E67)) -> 304.0671231 | I67: 172739833 | J67: 11315834 | K67: 265.63 | L67: 0.109222611 | M67: 0.1447017398
A68: Landet i alt | B68: =SUM(B53:B67) -> 720000950.4 | C68: =SUM(C53:C67) -> 62498032.36 | D68: =SUM(D53:D67) -> 2394890.03 | E68: =SUM(E53:E67) -> 307212.94 | F68: =IF(D68=0,0,B68/D68) -> 300.640506 | G68: 203.4355466 | H68: =IF(D68+E68=0,0,(B68+C68)/(D68+E68)) -> 289.5888837 | I68: =SUM(I53:I67) -> 768511513 | J68: =SUM(J53:J67) -> 35103006 | K68: 275.99 | L68: -0.06312275323 | M68: =(H68-K68)/K68 -> 0.04927310307

Sheet BETONG
A2: ="MÅLESTATISTIKK FOR BETONGFAGENE - 1. HALVÅR "&FORS!$A$14 -> MÅLESTATISTIKK FOR BETONGFAGENE - 1. HALVÅR 2018
B4: Målesum i kroner | D4: Timer | F4: ="Fortjeneste 1. halvår "&FORS!$A$14-0 -> Fortjeneste 1. halvår 2018 | I4: =" 1. halvår "&FORS!$A$14-1 -> 1. halvår 2017 | L4: Endringer i %
B5: Innmålt m/ | C5: Innmålt m/ | D5: Innmålt m/ | E5: Innmålt m/ | F5: Innmålt m/ | G5: Innmålt m/ | H5: Gjennom- | I5: Innmålt m/ | J5: Innmålt m/ | K5: Gjen.snitt | L5: Innmålt m/ | M5: Gjen.snitt
B6: overskudd | C6: underskudd | D6: overskudd | E6: underskudd | F6: overskudd | G6: underskudd | H6: snitt | I6: overskudd | J6: underskudd | K6: fortjeneste | L6: overskudd | M6: fortjeneste
A7: Agder | B7: 3286884 | D7: 10594 | F7: =IF(D7=0,0,B7/D7) -> 310.2590145 | G7: =IF(E7=0,0,C7/E7) -> 0 | H7: =IF(D7+E7=0,0,(B7+C7)/(D7+E7)) -> 310.2590145 | I7: 1596486 | K7: 290.69 | L7: =IF(I7=0,0,(B7-I7)/I7) -> 1.058824193 | M7: =IF(K7=0,0,(H7-K7)/K7) -> 0.06731918723
A8: Bergen | B8: 12656563 | D8: 43867.95 | F8: 288.515032 | G8: 0 | H8: 288.515032 | I8: 18628678 | K8: 282.8 | L8: =IF(I8=0,0,(B8-I8)/I8) -> -0.3205871614 | M8: =IF(K8=0,0,(H8-K8)/K8) -> 0.02020874132
A9: Drammen - Bærum | F9: 0 | G9: 0 | H9: 0 | L9: 0 | M9: 0
A10: Glåmdal | F10: 0 | G10: 0 | H10: 0 | K10: 0 | L10: 0 | M10: 0
A11: Haugesund | B11: 6287106 | D11: 23894.44 | F11: 263.1200396 | G11: 0 | H11: 263.1200396 | I11: 9497061 | K11: 265.78 | L11: -0.3379945648 | M11: -0.01000812837
A12: Hamar og Omegn | B12: 10049071.33 | D12: 34560.18 | F12: 290.7702254 | G12: 0 | H12: 290.7702254 | I12: 5660316 | K12: 299.13 | L12: 0.7753551798 | M12: -0.02794696137
A13: Nordland | F13: =IF(D13=0,0,B13/D13) -> 0 | G13: 0 | H13: 0 | K13: 0 | L13: 0 | M13: 0
A14: Sandnes | B14: 14761530.04 | D14: 45914.15 | G14: 0 | H14: 321.5028491 | I14: 25854094.28 | K14: 294.33 | L14: -0.4290447818 | M14: 0.09232103123
A15: Stavanger | F15: 0 | G15: 0 | H15: 0 | L15: 0 | M15: 0
A16: Telemark | B16: 7463597 | D16: 23080.2 | F16: 323.3766172 | G16: 0 | H16: 323.3766172 | I16: 3190640 | K16: 312.82 | L16: 1.33921627 | M16: 0.03374661846
A17: Tromsø | F17: 0 | G17: 0 | H17: 0 | L17: 0
A18: Trondheim | B18: 40861429.29 | C18: 816652.85 | D18: 137751.49 | E18: 4821.8 | F18: 296.6314868 | G18: 169.3668029 | H18: 292.3274208 | I18: 67713882 | K18: 304.94 | L18: -0.3965575731 | M18: -0.04136085527
A19: Vestfold | F19: 0 | G19: =IF(E19=0,0,D19/E19) -> 0 | H19: 0 | I19: 745558 | K19: 259.05 | L19: -1 | M19: -1
A20: Østfold | B20: 7858614 | C20: 773181 | D20: 27095.5 | E20: 3811 | F20: 290.0339171 | G20: 202.881396 | H20: 279.2873667 | I20: 6444714 | J20: 336850 | K20: 286.88 | L20: 0.2193890993 | M20: -0.02646623419
A21: Oslo | B21: 8660173 | D21: 28269 | F21: 306.3487566 | G21: 0 | H21: 306.3487566 | I21: 13730510 | K21: 347.42 | L21: -0.3692752126 | M21: -0.1182178441
A22: Landet i alt | B22: =SUM(B7:B21) -> 111884967.7 | C22: =SUM(C7:C21) -> 1589833.85 | D22: =SUM(D7:D21) -> 375026.91 | E22: =SUM(E7:E21) -> 8632.8 | F22: =IF(D22=0,0,B22/D22) -> 298.338505 | G22: =IF(E22=0,0,C22/E22) -> 184.1620158 | H22: =IF(D22+E22=0,0,(B22+C22)/(D22+E22)) -> 295.7693981 | I22: =SUM(I7:I21) -> 153061939.3 | J22: =SUM(J7:J21) -> 336850 | K22: 290.02 | L22: -0.2690216249 | M22: 0.01982414358
A25: ="MÅLESTATISTIKK FOR BETONGFAGENE - 2. HALVÅR "&FORS!$A$14 -> MÅLESTATISTIKK FOR BETONGFAGENE - 2. HALVÅR 2018
B27: Målesum i kroner | D27: Timer | F27: ="Fortjeneste 2. halvår "&FORS!$A$14-0 -> Fortjeneste 2. halvår 2018 | I27: =" 2. halvår "&FORS!$A$14-1 -> 2. halvår 2017 | L27: Endringer i %
B28: Innmålt m/ | C28: Innmålt m/ | D28: Innmålt m/ | E28: Innmålt m/ | F28: Innmålt m/ | G28: Innmålt m/ | H28: Gjennom- | I28: Innmålt m/ | J28: Innmålt m/ | K28: Gjen.snitt | L28: Innmålt m/ | M28: Gjen.snitt
B29: overskudd | C29: underskudd | D29: overskudd | E29: underskudd | F29: overskudd | G29: underskudd | H29: snitt | I29: overskudd | J29: underskudd | K29: fortjeneste | L29: overskudd | M29: fortjeneste
A30: Agder | B30: 9653053 | D30: 31859 | F30: =IF(D30=0,0,B30/D30) -> 302.992969 | G30: =IF(E30=0,0,#REF!/E30) -> 0 | H30: =IF(D30+E30=0,0,(B30+C30)/(D30+E30)) -> 302.992969 | I30: 745252 | K30: 310.52 | L30: =IF(I30=0,0,(B30-I30)/I30) -> 11.95273679 | M30: =IF(K30=0,0,(H30-K30)/K30) -> -0.02424008431
A31: Bergen | B31: 9035806.15 | D31: 30516.13 | F31: =IF(D31=0,0,B31/D31) -> 296.0993465 | G31: =IF(E31=0,0,C31/E31) -> 0 | H31: =IF(D31+E31=0,0,(B31+C31)/(D31+E31)) -> 296.0993465 | I31: 28871199.2 | K31: 280.91 | L31: =IF(I31=0,0,(B31-I31)/I31) -> -0.6870304525 | M31: =IF(K31=0,0,(H31-K31)/K31) -> 0.05407193221
A32: Drammen - Bærum | F32: =IF(D32=0,0,B32/D32) -> 0 | G32: =IF(E32=0,0,C32/E32) -> 0 | H32: =IF(D32+E32=0,0,(B32+C32)/(D32+E32)) -> 0 | L32: =IF(I32=0,0,(B32-I32)/I32) -> 0 | M32: 0
F33: =IF(D33=0,0,B33/D33) -> 0 | G33: 0 | H33: 0 | K33: 0 | L33: 0 | M33: 0
A34: Haugesund | B34: 10638372 | D34: 38691.44 | F34: =IF(D34=0,0,B34/D34) -> 274.9541501 | G34: 0 | H34: 274.9541501 | I34: 7435876 | K34: 257 | L34: 0.4306817381 | M34: 0.06986050609
A35: Hamar og Omegn | B35: 1618889 | D35: 5810.5 | F35: 278.614405 | G35: 0 | H35: 278.614405 | I35: 3963868 | K35: 319.87 | L35: -0.5915885695 | M35: =IF(K35=0,0,(H35-K35)/K35) -> -0.1289761311
F36: 0 | G36: 0 | H36: 0 | K36: 0 | L36: 0 | M36: 0
A37: Sandnes | B37: 11820104.98 | D37: 37496.16 | F37: 315.2350795 | G37: 0 | H37: =IF(D37+E37=0,0,(B37+C37)/(D37+E37)) -> 315.2350795 | I37: 35988200.62 | K37: 293.21 | L37: -0.6715560996 | M37: 0.07511708175
A38: Stavanger | F38: 0 | G38: 0 | H38: 0 | K38: 0 | L38: 0 | M38: 0
A39: Telemark | B39: 3294600 | D39: 10800 | F39: 305.0555556 | G39: 0 | H39: 305.0555556 | I39: 153094 | K39: 335.36 | L39: 20.52011183 | M39: -0.0903639207
F40: 0 | G40: 0 | H40: 0 | L40: 0 | M40: 0
A41: Trondheim | B41: 27503699.53 | C41: 1557442.55 | D41: 84501.41 | E41: 8863.75 | F41: 325.4821373 | G41: 175.7092145 | H41: 311.2632387 | I41: 45905895.45 | K41: 311.47 | L41: -0.4008678132 | M41: -0.0006638242393
A42: Vestfold | F42: 0 | G42: 0 | H42: 0 | I42: 1181234 | K42: 276.89 | L42: -1 | M42: -1
A43: Østfold | B43: 3387088 | C43: 0 | D43: 11513.5 | F43: 294.1840448 | G43: 0 | H43: 294.1840448 | I43: 7637352 | J43: 164000 | K43: 303.24 | L43: -0.5565101622 | M43: -0.02986398623
A44: Oslo | B44: 18436516 | D44: 53773 | F44: 342.8582374 | G44: 0 | H44: 342.8582374 | I44: 6921284 | J44: 1477955 | K44: 304.92 | L44: 1.663742161 | M44: 0.1244202985
A45: Landet i alt | B45: =SUM(B30:B44) -> 95388128.66 | C45: =SUM(C30:C44) -> 1557442.55 | D45: =SUM(D30:D44) -> 304961.14 | E45: =SUM(E30:E44) -> 8863.75 | F45: =IF(D45=0,0,B45/D45) -> 312.7878151 | G45: =IF(E45=0,0,C45/E45) -> 175.7092145 | H45: =IF(D45+E45=0,0,(B45+C45)/(D45+E45)) -> 308.9161322 | I45: =SUM(I30:I44) -> 138803255.3 | J45: 1565848 | K45: 293.34 | L45: -0.312781761 | M45: 0.05309924391
A48: ="MÅLESTATISTIKK FOR BETONGFAGENE - GJENNOMSNITT HELE ÅRET "&FORS!$A$14 -> MÅLESTATISTIKK FOR BETONGFAGENE - GJENNOMSNITT HELE ÅRET 2018
B50: Målesum i kroner | D50: Timer | F50: ="Fortjeneste hele "&FORS!$A$14-0 -> Fortjeneste hele 2018 | I50: =" Hele året "&FORS!$A$14-1 -> Hele året 2017 | L50: Endringer i %
B51: Innmålt m/ | C51: Innmålt m/ | D51: Innmålt m/ | E51: Innmålt m/ | F51: Innmålt m/ | G51: Innmålt m/ | H51: Gjennom- | I51: Innmålt m/ | J51: Innmålt m/ | K51: Gjen.snitt | L51: Innmålt m/ | M51: Gjen.snitt
B52: overskudd | C52: underskudd | D52: overskudd | E52: underskudd | F52: overskudd | G52: underskudd | H52: snitt | I52: overskudd | J52: underskudd | K52: fortjeneste | L52: overskudd | M52: fortjeneste
A53: Agder | B53: =B7+B30 -> 12939937 | C53: =C7+C30 -> 0 | D53: =D7+D30 -> 42453 | E53: =E7+E30 -> 0 | F53: =IF(D53=0,0,B53/D53) -> 304.8061857 | G53: =IF(E53=0,0,C30/E53) -> 0 | H53: =IF(D53+E53=0,0,(B53+C53)/(D53+E53)) -> 304.8061857 | I53: =I7+I30 -> 2341738 | J53: =J7+J30 -> 0 | K53: 234.91 | L53: =IF(I53=0,0,(B30-I53)/I53) -> 3.122174641 | M53: =IF(K53=0,0,(H53-K53)/K53) -> 0.2975445305
A54: Bergen | B54: =B8+B31 -> 21692369.15 | D54: =D8+D31 -> 74384.08 | F54: =IF(D54=0,0,B54/D54) -> 291.6265033 | G54: =IF(E54=0,0,C54/E54) -> 0 | H54: =IF(D54+E54=0,0,(B54+C54)/(D54+E54)) -> 291.6265033 | I54: =I8+I31 -> 47499877.2 | J54: 0 | K54: 281.77 | L54: =IF(I54=0,0,(B54-I54)/I54) -> -0.5433173636 | M54: =IF(K54=0,0,(H54-K54)/K54) -> 0.03498066962
A55: Drammen - Bærum | F55: 0 | G55: 0 | H55: 0 | I55: 0 | J55: 0 | L55: =IF(I55=0,0,(B55-I55)/I55) -> 0 | M55: 0
F56: 0 | G56: 0 | H56: 0 | I56: 0 | J56: 0 | K56: 0 | L56: 0 | M56: 0
A57: Haugesund | B57: =B11+B34 -> 16925478 | D57: =D11+D34 -> 62585.88 | F57: 270.4360472 | G57: 0 | H57: 270.4360472 | I57: 16932937 | J57: 0 | K57: 261.17 | L57: -0.0004405024362 | M57: 0.03547898777
A58: Hamar og Omegn | B58: =B12+B35 -> 11667960.33 | D58: =D12+D35 -> 40370.68 | F58: 289.0206539 | G58: 0 | H58: 289.0206539 | I58: 9624184 | J58: 0 | K58: 260.5 | L58: 0.2123584015 | M58: 0.1094842758
F59: 0 | G59: 0 | H59: 0 | I59: 0 | J59: 0 | K59: 0 | L59: 0 | M59: 0
A60: Sandnes | B60: =B14+B37 -> 26581635.02 | D60: =D14+D37 -> 83410.31 | F60: =IF(D60=0,0,B60/D60) -> 318.6852443 | G60: 0 | H60: =IF(D60+E60=0,0,(B60+C60)/(D60+E60)) -> 318.6852443 | I60: 61842294.9 | J60: 0 | K60: 296.2 | L60: =IF(I60=0,0,(B60-I60)/I60) -> -0.5701706241 | M60: 0.07591237105
A61: Stavanger | F61: 0 | G61: 0 | H61: 0 | I61: 0 | J61: 0 | L61: 0 | M61: 0
A62: Telemark | B62: =B16+B39 -> 10758197 | D62: =D16+D39 -> 33880.2 | F62: 317.5364077 | G62: 0 | H62: 317.5364077 | I62: 3343734 | J62: 0 | K62: 310.94 | L62: =IF(I62=0,0,(B62-I62)/I62) -> 2.217420106 | M62: 0.02121440694
F63: 0 | G63: 0 | H63: 0 | I63: 0 | J63: 0 | L63: 0 | M63: 0
A64: Trondheim | B64: =B18+B41 -> 68365128.82 | C64: =C18+C41 -> 2374095.4 | D64: =D18+D41 -> 222252.9 | E64: =E18+E41 -> 13685.55 | F64: 307.6006154 | G64: 173.4746064 | H64: 299.8206703 | I64: =I18+I41 -> 113619777.5 | J64: 0 | K64: 297.3 | L64: =IF(I64=0,0,(B64-I64)/I64) -> -0.3982990431 | M64: 0.008478541082
A65: Vestfold | B65: =B19+B42 -> 0 | D65: =D19+D42 -> 0 | F65: =IF(D65=0,0,B65/D65) -> 0 | G65: 0 | H65: 0 | I65: 1926792 | J65: 0 | K65: 269.63 | L65: =IF(I65=0,0,(B42-I65)/I65) -> -1 | M65: -1
A66: Østfold | B66: =B20+B43 -> 11245702 | C66: =C20+C43 -> 773181 | D66: =D20+D43 -> 38609 | E66: =E20+E43 -> 3811 | F66: =IF(D66=0,0,B66/D66) -> 291.271517 | G66: 202.881396 | H66: 283.3305752 | I66: 14082066 | J66: 500850 | K66: 279.12 | L66: =IF(I66=0,0,(B66-I66)/I66) -> -0.2014167523 | M66: 0.01508517914
A67: Oslo | B67: =B21+B44 -> 27096689 | C67: =C21+C44 -> 0 | D67: =D21+D44 -> 82042 | E67: =E21+E44 -> 0 | F67: 330.2782599 | G67: 0 | H67: 330.2782599 | I67: =I21+I44 -> 20651794 | J67: =J21+J44 -> 1477955 | K67: 311.81 | L67: 0.3120743409 | M67: 0.05922920983
A68: Landet i alt | B68: =SUM(B53:B67) -> 207273096.3 | C68: =SUM(C53:C67) -> 3147276.4 | D68: =SUM(D53:D67) -> 679988.05 | E68: =SUM(E53:E67) -> 17496.55 | F68: =IF(D68=0,0,B68/D68) -> 304.8187337 | G68: =IF(E68=0,0,C68/E68) -> 179.8798277 | H68: =IF(D68+E68=0,0,(B68+C68)/(D68+E68)) -> 301.6846146 | I68: 291865194.5 | J68: 1902698 | K68: 291.61 | L68: -0.2898327715 | M68: 0.0345482479

Sheet TØMRERE
A2: ="MÅLESTATISTIKK FOR TØMRERE - 1. HALVÅR "&FORS!$A$14 -> MÅLESTATISTIKK FOR TØMRERE - 1. HALVÅR 2018
B4: Målesum i kroner | D4: Timer | F4: ="Fortjeneste 1. halvår "&FORS!$A$14-0 -> Fortjeneste 1. halvår 2018 | I4: =" 1. halvår "&FORS!$A$14-1 -> 1. halvår 2017 | L4: Endringer i %
B5: Innmålt m/ | C5: Innmålt m/ | D5: Innmålt m/ | E5: Innmålt m/ | F5: Innmålt m/ | G5: Innmålt m/ | H5: Gjennom- | I5: Innmålt m/ | J5: Innmålt m/ | K5: Gjen.snitt | L5: Innmålt m/ | M5: Gjen.snitt
B6: overskudd | C6: underskudd | D6: overskudd | E6: underskudd | F6: overskudd | G6: underskudd | H6: snitt | I6: overskudd | J6: underskudd | K6: fortjeneste | L6: overskudd | M6: fortjeneste
A7: Agder | B7: 300361 | D7: 982 | F7: =IF(D7=0,0,B7/D7) -> 305.8665988 | G7: =IF(E7=0,0,C7/E7) -> 0 | H7: =IF(D7+E7=0,0,(B7+C7)/(D7+E7)) -> 305.8665988 | I7: 3407196 | K7: 282.4 | L7: =IF(I7=0,0,(B7-I7)/I7) -> -0.9118451067 | M7: =IF(K7=0,0,(H7-K7)/K7) -> 0.08309702117
A8: Bergen | B8: 5035505.84 | D8: 18735.68 | F8: =IF(D8=0,0,B8/D8) -> 268.7655767 | G8: =IF(E8=0,0,C8/E8) -> 0 | H8: =IF(D8+E8=0,0,(B8+C8)/(D8+E8)) -> 268.7655767 | I8: 608630.7 | K8: 269.08 | L8: =IF(I8=0,0,(B8-I8)/I8) -> 7.273499579 | M8: =IF(K8=0,0,(H8-K8)/K8) -> -0.001168512352
A9: Drammen - Bærum | F9: 0 | G9: 0 | H9: 0 | K9: 0 | L9: =IF(I9=0,0,(B9-I9)/I9) -> 0 | M9: 0
A10: Glåmdal | F10: 0 | G10: 0 | H10: 0
A11: Hamar og Omegn | B11: 3562718.3 | D11: 14452.94 | F11: 246.5047457 | G11: 0 | H11: 246.5047457 | I11: 3602527.26 | J11: 468965 | K11: 248.45 | L11: =IF(I11=0,0,(B11-I11)/I11) -> -0.01105028696 | M11: =IF(K11=0,0,(H11-K11)/K11) -> -0.007829560285
A12: Nordland | F12: 0 | G12: 0 | H12: 0 | L12: 0 | M12: 0
A13: Stavanger | F13: 0 | G13: 0 | H13: 0 | L13: 0 | M13: 0
A14: Telemark | B14: 9576000 | C14: 173440 | D14: 35717 | E14: 896.5 | F14: 268.1076238 | G14: 193.463469 | H14: 266.2799241 | I14: 15434444 | K14: 292.89 | L14: -0.3795694876 | M14: -0.09085348058
A15: Trondheim | B15: 71307436.09 | C15: 439937.4 | D15: 236677.97 | E15: 3550.35 | F15: =IF(D15=0,0,B15/D15) -> 301.2846362 | G15: =IF(E15=0,0,C15/E15) -> 123.9138113 | H15: =IF(D15+E15=0,0,(B15+C15)/(D15+E15)) -> 298.6632612 | I15: 69986011 | J15: 3310472 | K15: 281.28 | L15: =IF(I15=0,0,(B15-I15)/I15) -> 0.01888127457 | M15: =IF(K15=0,0,(H15-K15)/K15) -> 0.06180055897
A16: Tromsø | F16: =IF(D16=0,0,B16/D16) -> 0 | G16: 0 | H16: 0 | L16: =IF(I16=0,0,(B16-I16)/I16) -> 0 | M16: =IF(K16=0,0,(H16-K16)/K16) -> 0
A17: Vestfold | B17: 3784923 | C17: 776347 | D17: 12601 | E17: 4424 | F17: 300.3668756 | G17: 175.4853074 | H17: 267.9160059 | I17: 4939638 | J17: 379041 | K17: 256.96 | L17: -0.2337651059 | M17: =IF(K17=0,0,(H17-K17)/K17) -> 0.04263700916
A18: Østfold | B18: 9648703 | C18: 3093295 | D18: 34882 | E18: 15964 | F18: =IF(D18=0,0,B18/D18) -> 276.6097988 | G18: 193.7669131 | H18: 250.5998112 | I18: 5937413 | J18: 81752 | K18: 286.25 | L18: 0.6250685273 | M18: =IF(K18=0,0,(H18-K18)/K18) -> -0.1245421443
A19: Oslo | B19: 47870933.48 | C19: 3277809.4 | D19: 133674.8 | E19: 15780.03 | F19: =IF(D19=0,0,B19/D19) -> 358.1148689 | G19: =IF(E19=0,0,C19/E19) -> 207.718832 | H19: =IF(D19+E19=0,0,(B19+C19)/(D19+E19)) -> 342.2354626 | I19: 34751903.24 | J19: 5464376.74 | K19: 348.26 | L19: =IF(I19=0,0,(B19-I19)/I19) -> 0.3775053743 | M19: =IF(K19=0,0,(H19-K19)/K19) -> 
A20: Landet i alt | B20: =SUM(B7:B19) -> 151086580.7 | C20: =SUM(C7:C19) -> 7760828.8 | D20: =SUM(D7:D19) -> 487723.39 | E20: =SUM(E7:E19) -> 40614.88 | F20: =IF(D20=0,0,B20/D20) -> 309.7792392 | G20: =IF(E20=0,0,C20/E20) -> 191.0833862 | H20: =IF(D20+E20=0,0,(B20+C20)/(D20+E20)) -> 300.6547482 | I20: =SUM(I7:I19) -> 138667763.2 | J20: =SUM(J7:J19) -> 9704606.74 | K20: 284.38 | L20: 0.08955807192 | M20: =IF(K20=0,0,(H20-K20)/K20) -> 0.05722887742
L21: 0 | M21: 0
L22: 0 | M22: 0
A23: ="MÅLESTATISTIKK FOR TØMRERE - 2. HALVÅR "&FORS!$A$14 -> MÅLESTATISTIKK FOR TØMRERE - 2. HALVÅR 2018
B25: Målesum i kroner | D25: Timer | F25: ="Fortjeneste 2. halvår "&FORS!$A$14-0 -> Fortjeneste 2. halvår 2018 | I25: =" 2. halvår "&FORS!$A$14-1 -> 2. halvår 2017 | L25: Endringer i %
B26: Innmålt m/ | C26: Innmålt m/ | D26: Innmålt m/ | E26: Innmålt m/ | F26: Innmålt m/ | G26: Innmålt m/ | H26: Gjennom- | I26: Innmålt m/ | J26: Innmålt m/ | K26: Gjen.snitt | L26: Innmålt m/ | M26: Gjen.snitt
B27: overskudd | C27: underskudd | D27: overskudd | E27: underskudd | F27: overskudd | G27: underskudd | H27: snitt | I27: overskudd | J27: underskudd | K27: fortjeneste | L27: overskudd | M27: fortjeneste
A28: Agder | B28: 4299345 | D28: 14553 | F28: =IF(D28=0,0,B28/D28) -> 295.4267161 | G28: =IF(E28=0,0,C28/E28) -> 0 | H28: =IF(D28+E28=0,0,(B28+C28)/(D28+E28)) -> 295.4267161 | I28: 1135199 | K28: 322.41 | L28: =IF(I28=0,0,(B28-I28)/I28) -> 2.787305133 | M28: =IF(K28=0,0,(H28-K28)/K28) -> -0.08369245327
A29: Bergen | B29: 1561417.19 | D29: 5674 | F29: =IF(D29=0,0,B29/D29) -> 275.1880842 | G29: 0 | H29: 275.1880842 | I29: 3267203.13 | K29: 257.62 | L29: =IF(I29=0,0,(B29-I29)/I29) -> -0.5220936294 | M29: =IF(K29=0,0,(H29-K29)/K29) -> 0.06819379025
A30: Drammen - Bærum | F30: =IF(D30=0,0,B30/D30) -> 0 | G30: 0 | H30: 0 | M30: 0
F31: 0 | G31: 0 | H31: 0 | M31: 0
A32: Hamar og Omegn | B32: 20101763 | D32: 83646.25 | F32: 240.3187591 | G32: 0 | H32: 240.3187591 | I32: 7245378.2 | K32: 241.72 | L32: =IF(I32=0,0,(B32-I32)/I32) -> 1.774425633 | M32: -0.005796959045
A33: Nordland | F33: 0 | G33: 0 | H33: 0 | M33: 0
A34: Stavanger | F34: 0 | G34: 0 | H34: 0 | L34: 0 | M34: 0
A35: Telemark | B35: 9720910 | D35: 31707 | F35: 306.585612 | G35: 0 | H35: 306.585612 | I35: 8152449 | J35: 2613000 | K35: 264.7 | L35: =IF(I35=0,0,(B35-I35)/I35) -> 0.1923913906 | M35: =IF(K35=0,0,(H36-K35)/K35) -> 0.07181901024
A36: Trondheim | B36: 87912044.06 | C36: 17072316.91 | D36: 292157.55 | E36: 77882.91 | F36: 300.9062886 | G36: 219.2049181 | H36: 283.710492 | I36: 83255433 | J36: 2144152 | K36: 297.29 | L36: =IF(I36=0,0,(B36-I36)/I36) -> 0.05593161782 | M36: =IF(K36=0,0,(H36/K36)/K36) -> 0.003210072158
F37: 0 | G37: 0 | H37: 0 | K37: 0 | L37: 0 | M37: 0
A38: Vestfold | B38: 6728094 | D38: 22334 | F38: =IF(D38=0,0,B38/D38) -> 301.2489478 | G38: 0 | H38: 301.2489478 | I38: 5080725 | K38: 264.65 | L38: 0.324238962 | M38: 0.1382918866
A39: Østfold | B39: 4310033 | C39: 3256160 | D39: 13508 | E39: 15134 | F39: 319.0726236 | G39: 215.1552795 | H39: 264.1642693 | I39: 5976593.5 | K39: 282.54 | L39: -0.2788478922 | M39: -0.06503762563
A40: Oslo | B40: 57464533.27 | D40: 168322.8 | F40: =IF(D40=0,0,B40/D40) -> 341.3948275 | G40: 0 | H40: =IF(D40+E40=0,0,(B40+C40)/(D40+E40)) -> 341.3948275 | I40: 38983352.17 | K40: 312.28 | L40: 0.4740788073 | M40: 0.09323308409
A41: Landet i alt | B41: =SUM(B28:B40) -> 192098139.5 | C41: =SUM(C28:C40) -> 20328476.91 | D41: =SUM(D28:D40) -> 631902.6 | E41: =SUM(E28:E40) -> 93016.91 | F41: =IF(D41=0,0,B41/D41) -> 303.999603 | G41: =IF(E41=0,0,C41/E41) -> 218.5460354 | H41: =IF(D41+E41=0,0,(B41+C41)/(D41+E41)) -> 293.0347625 | I41: =SUM(I28:I40) -> 153096333 | J41: =SUM(J28:J40) -> 4757152 | K41: 288.43 | L41: 0.2547533684 | M41: 0.0159649221
A44: ="MÅLESTATISTIKK FOR TØMRERE - GJENNOMSNITT HELE ÅRET "&FORS!$A$14 -> MÅLESTATISTIKK FOR TØMRERE - GJENNOMSNITT HELE ÅRET 2018
B46: Målesum i kroner | D46: Timer | F46: ="Fortjeneste hele "&FORS!$A$14-0 -> Fortjeneste hele 2018 | I46: =" Hele året "&FORS!$A$14-1 -> Hele året 2017 | L46: Endringer i %
B47: Innmålt m/ | C47: Innmålt m/ | D47: Innmålt m/ | E47: Innmålt m/ | F47: Innmålt m/ | G47: Innmålt m/ | H47: Gjennom- | I47: Innmålt m/ | J47: Innmålt m/ | K47: Gjen.snitt | L47: Innmålt m/ | M47: Gjen.snitt
B48: overskudd | C48: underskudd | D48: overskudd | E48: underskudd | F48: overskudd | G48: underskudd | H48: snitt | I48: overskudd | J48: underskudd | K48: fortjeneste | L48: overskudd | M48: fortjeneste
A49: Agder | B49: =B7+B28 -> 4599706 | D49: =D7+D28 -> 15535 | F49: =IF(D49=0,0,B49/D49) -> 296.0866431 | G49: =IF(E49=0,0,C49/E49) -> 0 | H49: =IF(D49+E49=0,0,(B49+C49)/(D49+E49)) -> 296.0866431 | I49: =I7+I28 -> 4542395 | J49: =J7+J28 -> 0 | K49: 263 | L49: =IF(I49=0,0,(B49-I49)/I49) -> 0.01261691244 | M49: =IF(K49=0,0,(H49-K49)/K49) -> 0.1258047265
A50: Bergen | B50: =B8+B29 -> 6596923.03 | D50: =D8+D29 -> 24409.68 | F50: =IF(D50=0,0,B50/D50) -> 270.2584807 | G50: =IF(E50=0,0,C50/E50) -> 0 | H50: =IF(D50+E50=0,0,(B50+C50)/(D50+E50)) -> 270.2584807 | I50: =I8+I29 -> 3875833.83 | J50: =J8+J29 -> 0 | K50: 245 | L50: =IF(I50=0,0,(B50-I50)/I50) -> 0.7020654959 | M50: =IF(K50=0,0,(H50-K50)/K50) -> 0.1030958394
A51: Drammen - Bærum | F51: 0 | G51: 0 | H51: 0 | I51: 0 | J51: 0 | K51: 0 | L51: =IF(I51=0,0,(B51-I51)/I51) -> 0 | M51: 0
F52: 0 | G52: 0 | H52: 0 | I52: =I10+I31 -> 0 | J52: 0 | L52: 0 | M52: 0
A53: Hamar og Omegn | B53: =B11+B32 -> 23664481.3 | C53: =C11+C32 -> 0 | D53: =D11+D32 -> 98099.19 | E53: =E11+E32 -> 0 | F53: 241.2301396 | G53: 0 | H53: 241.2301396 | I53: =I11+I32 -> 10847905.46 | J53: 468965 | K53: 271 | L53: 1.181479308 | M53: =IF(K53=0,0,(H53-K53)/K53) -> -0.1098518833
A54: Nordland | F54: 0 | G54: 0 | H54: =IF(D54+E54=0,0,(B54+C54)/(D54+E54)) -> 0 | I54: 0 | J54: 0
A55: Stavanger | F55: 0 | G55: 0 | H55: =IF(D55+E55=0,0,(B55+C55)/(D55+E55)) -> 0 | I55: 0 | J55: 0 | K55: 308 | L55: 0 | M55: =IF(K55=0,0,(H55-K55)/K55) -> -1
A56: Telemark | B56: =B14+B35 -> 19296910 | C56: 173440 | D56: =D14+D35 -> 67424 | E56: 896.5 | F56: =IF(D56=0,0,B56/D56) -> 286.2023908 | G56: 193.463469 | H56: 284.9854729 | I56: 23586893 | J56: 2613000 | K56: 244 | L56: =IF(I56=0,0,(B56-I56)/I56) -> -0.1818799534 | M56: =IF(K56=0,0,(H56-K56)/K56) -> 0.1679732495
A57: Trondheim | B57: =B15+B36 -> 159219480.2 | C57: =C15+C36 -> 17512254.31 | D57: =D15+D36 -> 528835.52 | E57: =E15+E36 -> 81433.26 | F57: =IF(D57=0,0,B57/D57) -> 301.0756164 | G57: 215.0503899 | H57: =IF(D57+E57=0,0,(B57+C57)/(D57+E57)) -> 289.596552 | I57: 153241444 | J57: 5454624 | K57: 273 | L57: =IF(I57=0,0,(B57-I57)/I57) -> 0.03901057047 | M57: 0.06079323064
F58: 0 | G58: 0 | I58: 0 | J58: 0 | L58: 0 | M58: 0
A59: Vestfold | B59: =B17+B38 -> 10513017 | C59: =C17+C38 -> 776347 | D59: 34935 | E59: 4424 | F59: =IF(D59=0,0,B59/D59) -> 300.9307857 | G59: 175.4853074 | H59: =IF(D59+E59=0,0,(B59+C58)/(D59+E59)) -> 267.1057954 | I59: 10020363 | J59: 379041 | K59: 230 | L59: =IF(I59=0,0,(B59-I59)/I59) -> 0.04916528473 | M59: 0.1613295451
A60: Østfold | B60: 13958736 | C60: =C18+C39 -> 6349455 | D60: =D18+D39 -> 48390 | E60: =E18+E39 -> 31098 | F60: =IF(D60=0,0,B60/D60) -> 288.4632362 | G60: =IF(E60=0,0,C60/E60) -> 204.1756705 | H60: =IF(D60+E60=0,0,(B60+C60)/(D60+E60)) -> 255.4875075 | I60: 11914006.5 | J60: 81752 | K60: 281 | L60: =IF(I60=0,0,(B60-I60)/I60) -> 0.1716240041 | M60: -0.09079178808
A61: Oslo | B61: =B19+B40 -> 105335466.8 | C61: =C19+C40 -> 3277809.4 | D61: =D19+D40 -> 301997.6 | E61: =E19+E40 -> 15780.03 | F61: =IF(D61=0,0,B61/D61) -> 348.7957081 | G61: 207.718832 | H61: =IF(D61+E61=0,0,(B61+C61)/(D61+E61)) -> 341.7901888 | I61: 73735255.41 | J61: 5464376.74 | K61: 296 | L61: =IF(I61=0,0,(B61-I61)/I61) -> 0.4285631231 | M61: =IF(K61=0,0,(H61-K61)/K61) -> 0.1546965837
A62: Landet i alt | B62: =SUM(B49:B61) -> 343184720.2 | C62: =SUM(C49:C61) -> 28089305.71 | D62: =SUM(D49:D61) -> 1119625.99 | E62: =SUM(E49:E61) -> 133631.79 | F62: =IF(D62=0,0,B62/D62) -> 306.5172864 | G62: =IF(E62=0,0,C62/E62) -> 210.1992775 | H62: =IF(D62+E62=0,0,(B62+C62)/(D62+E62)) -> 296.2471344 | I62: =I20+I41 -> 291764096.2 | J62: 14461758.74 | K62: 295.4 | L62: 0.1762404103 | M62: 0.002867753421

Sheet MALERE
A2: ="MÅLESTATISTIKK FOR MALERE - 1. HALVÅR "&FORS!$A$14 -> MÅLESTATISTIKK FOR MALERE - 1. HALVÅR 2018
B4: Målesum i kroner | D4: Timer | F4: ="Fortjeneste 1. halvår "&FORS!$A$14-0 -> Fortjeneste 1. halvår 2018 | I4: =" 1. halvår "&FORS!$A$14-1 -> 1. halvår 2017 | L4: Endringer i %
B5: Innmålt m/ | C5: Innmålt m/ | D5: Innmålt m/ | E5: Innmålt m/ | F5: Innmålt m/ | G5: Innmålt m/ | H5: Gjennom- | I5: Innmålt m/ | J5: Innmålt m/ | K5: Gjen.snitt | L5: Innmålt m/ | M5: Gjen.snitt
B6: overskudd | C6: underskudd | D6: overskudd | E6: underskudd | F6: overskudd | G6: underskudd | H6: snitt | I6: overskudd | J6: underskudd | K6: fortjeneste | L6: overskudd | M6: fortjeneste
A7: Agder | F7: =IF(D7=0,0,B7/D7) -> 0 | H7: =IF(D7+E7=0,0,(B7+C7)/(D7+E7)) -> 0 | K7: 0 | L7: =IF(I7=0,0,(B7-I7)/I7) -> 0 | M7: =IF(K7=0,0,(H7-K7)/K7) -> 0
A8: Bergen | B8: 1489529.86 | D8: 5725.84 | F8: =IF(D8=0,0,B8/D8) -> 260.1417189 | G8: =IF(E8=0,0,C8/E8) -> 0 | H8: =IF(D8+E8=0,0,(B8+C8)/(D8+E8)) -> 260.1417189 | I8: 3257022.86 | K8: 240.53 | L8: =IF(I8=0,0,(B8-I8)/I8) -> -0.5426713523 | M8: =IF(K8=0,0,(H8-K8)/K8) -> 0.08153543818
A9: Glåmdal | F9: 0 | G9: 0 | H9: =IF(D9+E9=0,0,(B9+C9)/(D9+E9)) -> 0 | K9: 0 | L9: 0 | M9: =IF(K9=0,0,(H9-K9)/K9) -> 0
A10: Hamar og Omegn | B10: 1997274 | D10: 6341 | F10: =IF(D10=0,0,B10/D10) -> 314.9777638 | G10: =IF(E10=0,0,C10/E10) -> 0 | H10: 314.9777638 | I10: 1954570 | J10: 347493 | K10: 276.76 | L10: 0.02184828377 | M10: 0.138089911
A11: Nordland | F11: 0 | G11: =IF(E11=0,0,C11/E11) -> 0 | H11: 0 | K11: 0 | L11: 0 | M11: 0
A12: Sandnes | F12: 0 | G12: 0 | H12: 0 | K12: 0 | L12: 0 | M12: 0
A13: Telemark | B13: 66992 | D13: 177.5 | F13: =IF(D13=0,0,B13/D13) -> 377.4197183 | G13: 0 | H13: 377.4197183 | I13: 135872 | K13: 351.54 | L13: -0.5069477155 | M13: 0.07361813253
A14: Tromsø | F14: 0 | G14: 0 | H14: =IF(D14+E14=0,0,(B14+C14)/(D14+E14)) -> 0 | K14: 0 | L14: 0 | M14: =IF(K14=0,0,(H14-K14)/K14) -> 0
A15: Trondheim | B15: 19801825 | C15: 1951159 | D15: 72279.84 | E15: 10169.09 | F15: =IF(D15=0,0,B15/D15) -> 273.9605539 | G15: =IF(E15=0,0,C15/E15) -> 191.8715441 | H15: =IF(D15+E15=0,0,(B15+C15)/(D15+E15)) -> 263.8358557 | I15: 17167583 | J15: 2462157 | K15: 239.55 | L15: 0.1534427997 | M15: 0.1013811552
A16: Vestfold | B16: 782636.75 | D16: 2263.5 | F16: =IF(D16=0,0,B16/D16) -> 345.7639717 | G16: =IF(E16=0,0,C16/E16) -> 0 | H16: =IF(D16+E16=0,0,(B16+C16)/(D16+E16)) -> 345.7639717 | I16: 202751.29 | K16: 377.91 | L16: 2.860082715 | M16: -0.08506265586
A17: Oslo | B17: 7241015 | D17: 22810 | F17: 317.4491451 | G17: 0 | H17: 317.4491451 | I17: 3159454 | K17: 301.33 | L17: 1.291856441 | M17: 0.05349332994
A18: Landet i alt | B18: =SUM(B7:B17) -> 31379272.61 | C18: =SUM(C7:C17) -> 1951159 | D18: =SUM(D7:D17) -> 109597.68 | E18: =SUM(E7:E17) -> 10169.09 | F18: =IF(D18=0,0,B18/D18) -> 286.3132925 | G18: =IF(E18=0,0,C18/E18) -> 191.8715441 | H18: =IF(D18+E18=0,0,(B18+C18)/(D18+E18)) -> 278.2944853 | I18: =SUM(I7:I17) -> 25877253.15 | J18: =SUM(J7:J17) -> 2809650 | K18: 255.14 | L18: 0.2126199187 | M18: 0.09075207836
A21: ="MÅLESTATISTIKK FOR MALERE - 2. HALVÅR "&FORS!$A$14 -> MÅLESTATISTIKK FOR MALERE - 2. HALVÅR 2018
B23: Målesum i kroner | D23: Timer | F23: ="Fortjeneste 2. halvår "&FORS!$A$14-0 -> Fortjeneste 2. halvår 2018 | I23: =" 2. halvår "&FORS!$A$14-1 -> 2. halvår 2017 | L23: Endringer i %
B24: Innmålt m/ | C24: Innmålt m/ | D24: Innmålt m/ | E24: Innmålt m/ | F24: Innmålt m/ | G24: Innmålt m/ | H24: Gjennom- | I24: Innmålt m/ | J24: Innmålt m/ | K24: Gjen.snitt | L24: Innmålt m/ | M24: Gjen.snitt
B25: overskudd | C25: underskudd | D25: overskudd | E25: underskudd | F25: overskudd | G25: underskudd | H25: snitt | I25: overskudd | J25: underskudd | K25: fortjeneste | L25: overskudd | M25: fortjeneste
A26: Agder | F26: =IF(D26=0,0,B26/D26) -> 0 | G26: =IF(E26=0,0,C26/E26) -> 0 | H26: =IF(D26+E26=0,0,(B26+C26)/(D26+E26)) -> 0 | K26: 0 | L26: =IF(I26=0,0,(B26-I26)/I26) -> 0 | M26: =IF(K26=0,0,(H26-K26)/K26) -> 0
A27: Bergen | B27: 1491296.18 | D27: 5441.49 | F27: =IF(D27=0,0,B27/D27) -> 274.0602629 | G27: =IF(E27=0,0,C27/E27) -> 0 | H27: =IF(D27+E27=0,0,(B27+C27)/(D27+E27)) -> 274.0602629 | I27: 2776450.83 | K27: 241.52 | L27: =IF(I27=0,0,(B27-I27)/I27) -> -0.4628767908 | M27: =IF(K27=0,0,(H27-K27)/K27) -> 0.1347311316
A28: Glåmdal | F28: 0 | G28: 0 | H28: 0 | K28: 0 | L28: 0 | M28: 0
A29: Hamar og Omegn | B29: 2032772.51 | D29: 5885 | F29: 345.4158895 | G29: =IF(E29=0,0,C29/E29) -> 0 | H29: 345.4158895 | I29: 1815663 | K29: 326.38 | L29: 0.119575885 | M29: 0.05832431384
A30: Nordland | F30: 0 | G30: 0 | H30: 0 | K30: 0 | L30: 0 | M30: 0
A31: Sandnes | F31: 0 | G31: 0 | H31: 0 | K31: 0 | L31: 0 | M31: 0
A32: Telemark | B32: 286665 | D32: 649.5 | F32: 441.3625866 | G32: 0 | H32: 441.3625866 | I32: 368682 | K32: 384.44 | L32: -0.2224600062 | M32: 0.1480662434
A33: Tromsø | F33: 0 | G33: 0 | H33: 0 | K33: 0 | L33: 0 | M33: 0
A34: Trondheim | B34: 20787622 | C34: 4342459 | D34: 71947.23 | E34: 25159.98 | F34: 288.9287329 | G34: 172.5938971 | H34: 258.7869737 | I34: 20237675 | J34: 5535263 | K34: 259.11 | L34: 0.02717441603 | M34: -0.001246676329
A35: Vestfold | B35: 327380.11 | D35: 861 | F35: =IF(D35=0,0,B35/D35) -> 380.2324158 | G35: =IF(E35=0,0,C35/E35) -> 0 | H35: =IF(D35+E35=0,0,(B35+C35)/(D35+E35)) -> 380.2324158 | I35: 319077 | K35: 409.6 | L35: 0.02602227675 | M35: -0.07169820362
A36: Oslo* | B36: 6986621 | C36: 1430172 | D36: 23079 | E36: 9352 | F36: 302.7263313 | G36: 152.9268606 | H36: 259.5292467 | I36: 1228677 | K36: 278.3 | L36: =IF(I36=0,0,(B36-I36)/I36) -> 4.68629591 | M36: -0.06744790978
A37: Landet i alt | B37: =SUM(B26:B36) -> 31912356.8 | C37: =SUM(C26:C36) -> 5772631 | D37: =SUM(D26:D36) -> 107863.22 | E37: =SUM(E26:E36) -> 34511.98 | F37: =IF(D37=0,0,B37/D37) -> 295.8594857 | G37: =IF(E37=0,0,C37/E37) -> 167.2645557 | H37: =IF(D37+E37=0,0,(B37+C37)/(D37+E37)) -> 264.6878656 | I37: =SUM(I26:I36) -> 26746224.83 | J37: =SUM(J26:J36) -> 5535263 | K37: 264.11 | L37: 0.1931536881 | M37: 0.00218797313
A38: * inklusive Buskerud
A40: ="MÅLESTATISTIKK FOR MALERE - GJENNOMSNITT HELE ÅRET "&FORS!$A$14 -> MÅLESTATISTIKK FOR MALERE - GJENNOMSNITT HELE ÅRET 2018
B42: Målesum i kroner | D42: Timer | F42: ="Fortjeneste hele "&FORS!$A$14-0 -> Fortjeneste hele 2018 | I42: =" Hele året "&FORS!$A$14-1 -> Hele året 2017 | L42: Endringer i %
B43: Innmålt m/ | C43: Innmålt m/ | D43: Innmålt m/ | E43: Innmålt m/ | F43: Innmålt m/ | G43: Innmålt m/ | H43: Gjennom- | I43: Innmålt m/ | J43: Innmålt m/ | K43: Gjen.snitt | L43: Innmålt m/ | M43: Gjen.snitt
B44: overskudd | C44: underskudd | D44: overskudd | E44: underskudd | F44: overskudd | G44: underskudd | H44: snitt | I44: overskudd | J44: underskudd | K44: fortjeneste | L44: overskudd | M44: fortjeneste
A45: Agder | F45: =IF(D45=0,0,B45/D45) -> 0 | G45: =IF(E45=0,0,C45/E45) -> 0 | H45: =IF(D45+E45=0,0,(B45+C45)/(D45+E45)) -> 0 | I45: =I7+I26 -> 0 | J45: =J7+J26 -> 0 | K45: 0 | L45: =IF(I45=0,0,(B45-I45)/I45) -> 0 | M45: =IF(K45=0,0,(H45-K45)/K45) -> 0
A46: Bergen | B46: =B8+B27 -> 2980826.04 | D46: =D8+D27 -> 11167.33 | F46: =IF(D46=0,0,B46/D46) -> 266.9237893 | G46: =IF(E46=0,0,C46/E46) -> 0 | H46: =IF(D46+E46=0,0,(B46+C46)/(D46+E46)) -> 266.9237893 | I46: =I8+I27 -> 6033473.69 | J46: 0 | K46: 229 | L46: =IF(I46=0,0,(B46-I46)/I46) -> -0.5059519287 | M46: =IF(K46=0,0,(H46-K46)/K46) -> 0.1656060668
F47: 0 | G47: 0 | H47: 0 | I47: 0 | J47: 0 | K47: 0 | L47: 0 | M47: 0
A48: Hamar og Omegn | B48: =B10+B29 -> 4030046.51 | C48: =C10+C29 -> 0 | D48: =D10+D29 -> 12226 | E48: =E10+E29 -> 0 | F48: 329.6291927 | G48: 0 | H48: 329.6291927 | I48: 3770233 | J48: 347493 | K48: 227 | L48: 0.06891179139 | M48: 0.4521109811
A49: Nordland | F49: 0 | G49: 0 | H49: 0 | I49: 0 | J49: 0 | K49: 0 | L49: 0 | M49: 0
A50: Sandnes | F50: 0 | G50: 0 | H50: 0 | I50: 0 | J50: 0 | K50: 0 | L50: 0 | M50: 0
A51: Telemark | B51: =B13+B32 -> 353657 | D51: =D13+D32 -> 827 | F51: 427.6384522 | G51: 0 | H51: 427.6384522 | I51: 504554 | J51: 0 | K51: 295 | L51: -0.2990700698 | M51: 0.449621872
F52: 0 | G52: 0 | H52: 0 | I52: 0 | J52: 0 | K52: 0 | L52: 0 | M52: 0
A53: Trondheim | B53: =B15+B34 -> 40589447 | C53: =C15+C34 -> 6293618 | D53: =D15+D34 -> 144227.07 | E53: =E15+E34 -> 35329.07 | F53: 281.4273839 | G53: 178.1427589 | H53: 261.105329 | I53: 37405258 | J53: 7997420 | K53: 253 | L53: 0.08512677549 | M53: 0.03203687333
A54: Vestfold | B54: =B16+B35 -> 1110016.86 | D54: =D16+D35 -> 3124.5 | F54: 355.2622372 | G54: 0 | H54: 355.2622372 | I54: =I16+I35 -> 521828.29 | J54: 0 | K54: 334 | L54: 1.127168805 | M54: 0.06365939269
A55: Oslo | B55: =B17+B36 -> 14227636 | C55: =C17+C36 -> 1430172 | D55: =D17+D36 -> 45889 | E55: =E17+E36 -> 9352 | F55: =IF(D55=0,0,B55/D55) -> 310.0445858 | G55: 152.9268606 | H55: 283.4454119 | I55: 4388131 | J55: 0 | K55: 279 | L55: 2.24229974 | M55: 0.01593337607
A56: Landet i alt | B56: =SUM(B45:B55) -> 63291629.41 | C56: =SUM(C45:C55) -> 7723790 | D56: =SUM(D45:D55) -> 217460.9 | E56: =SUM(E45:E55) -> 44681.07 | F56: =IF(D56=0,0,B56/D56) -> 291.0483191 | G56: =IF(E56=0,0,C56/E56) -> 172.8649292 | H56: =IF(D56+E56=0,0,(B56+C56)/(D56+E56)) -> 270.9044241 | I56: 52623477.98 | J56: 8344913 | K56: 260.4 | L56: 0.2027260804 | M56: 0.0403395702

Sheet RØRLEGGERE
A2: ="MÅLESTATISTIKK FOR RØRLEGGERE - 1. HALVÅR "&FORS!$A$14 -> MÅLESTATISTIKK FOR RØRLEGGERE - 1. HALVÅR 2018
B4: Målesum i kroner | D4: Timer | F4: ="Fortjeneste 1. halvår "&FORS!$A$14-0 -> Fortjeneste 1. halvår 2018 | I4: =" 1. halvår "&FORS!$A$14-1 -> 1. halvår 2017 | L4: Endringer i %
B5: Innmålt m/ | C5: Innmålt m/ | D5: Innmålt m/ | E5: Innmålt m/ | F5: Innmålt m/ | G5: Innmålt m/ | H5: Gjennom- | I5: Innmålt m/ | J5: Innmålt m/ | K5: Gjen.snitt | L5: Innmålt m/ | M5: Gjen.snitt
B6: overskudd | C6: underskudd | D6: overskudd | E6: underskudd | F6: overskudd | G6: underskudd | H6: snitt | I6: overskudd | J6: underskudd | K6: fortjeneste | L6: overskudd | M6: fortjeneste
A7: Bergen | F7: =IF(D7=0,0,B7/D7) -> 0 | G7: 0 | H7: =IF(D7+E7=0,0,(B7+C7)/(D7+E7)) -> 0 | K7: 0 | L7: =IF(I7=0,0,(B7-I7)/I7) -> 0 | M7: =IF(K7=0,0,(H7-K7)/K7) -> 0
A8: Nordland | F8: =IF(D22=0,0,B8/D22) -> 0 | G8: =IF(E8=0,0,C8/E8) -> 0 | H8: =IF(D8+E8=0,0,(B8+C8)/(D8+E8)) -> 0 | L8: =IF(I8=0,0,(B8-I8)/I8) -> 0 | M8: =IF(K8=0,0,(H8-K8)/K8) -> 0
A9: Stavanger | F9: 0 | G9: 0 | H9: 0 | K9: 0 | L9: 0 | M9: 0
A10: Tromsø | F10: 0 | G10: 0 | H10: 0 | K10: 0 | L10: 0 | M10: 0
A11: Trondheim | B11: 16500631.12 | C11: 4134145.55 | D11: 51026.3 | E11: 22141.6 | F11: =IF(D11=0,0,B11/D11) -> 323.3750266 | G11: 186.713948 | H11: 282.0195286 | I11: 13978670.53 | J11: 2963212.05 | K11: 275.58 | L11: 0.1804149103 | M11: 0.02336718429
A12: Oslo | B12: 9614177.72 | D12: 29226.5 | F12: 328.9541245 | G12: 0 | H12: =IF(D12+E12=0,0,(B12+C12)/(D12+E12)) -> 328.9541245 | I12: 22965092 | K12: 278.99 | L12: -0.581356882 | M12: 0.1790893025
A13: Landet i alt | B13: =SUM(B7:B12) -> 26114808.84 | C13: =SUM(C7:C12) -> 4134145.55 | D13: =SUM(D7:D12) -> 80252.8 | E13: =SUM(E7:E12) -> 22141.6 | F13: 325.4068249 | G13: 186.713948 | H13: 295.4161008 | I13: =SUM(I7:I12) -> 36943762.53 | J13: 1684944 | K13: 253.19 | L13: =IF(I13=0,0,(B13-I13)/I13) -> -0.2931199463 | M13: =IF(K13=0,0,(H13-K13)/K13) -> 0.1667763371
A16: ="MÅLESTATISTIKK FOR RØRLEGGERE - 2. HALVÅR "&FORS!$A$14 -> MÅLESTATISTIKK FOR RØRLEGGERE - 2. HALVÅR 2018
B18: Målesum i kroner | D18: Timer | F18: ="Fortjeneste 2. halvår "&FORS!$A$14-0 -> Fortjeneste 2. halvår 2018 | I18: =" 2. halvår "&FORS!$A$14-1 -> 2. halvår 2017 | L18: Endringer i %
B19: Innmålt m/ | C19: Innmålt m/ | D19: Innmålt m/ | E19: Innmålt m/ | F19: Innmålt m/ | G19: Innmålt m/ | H19: Gjennom- | I19: Innmålt m/ | J19: Innmålt m/ | K19: Gjen.snitt | L19: Innmålt m/ | M19: Gjen.snitt
B20: overskudd | C20: underskudd | D20: overskudd | E20: underskudd | F20: overskudd | G20: underskudd | H20: snitt | I20: overskudd | J20: underskudd | K20: fortjeneste | L20: overskudd | M20: fortjeneste
A21: Bergen | F21: =IF(D21=0,0,B21/D21) -> 0 | G21: 0 | H21: =IF(D21+E21=0,0,(B21+C21)/(D21+E21)) -> 0 | L21: =IF(I21=0,0,(B21-I21)/I21) -> 0 | M21: =IF(K21=0,0,(H21-K21)/K21) -> 0
A22: Nordland | C22: 2314573.07 | E22: 11009 | F22: =IF(D22=0,0,B22/D22) -> 0 | G22: =IF(E22=0,0,C22/E22) -> 210.2437161 | H22: =IF(D22+E22=0,0,(B22+C22)/(D22+E22)) -> 210.2437161 | L22: =IF(I22=0,0,(B22-I22)/I22) -> 0 | M22: =IF(K22=0,0,(H22-K22)/K22) -> 0
A23: Stavanger | F23: 0 | G23: 0 | H23: 0 | K23: 0 | L23: 0 | M23: 0
A24: Tromsø | F24: 0 | G24: 0 | H24: 0 | K24: 0 | L24: 0 | M24: 0
A25: Trondheim | B25: 9514387.84 | C25: 3379999.96 | D25: 32098.6 | E25: 16224.5 | F25: =IF(D25=0,0,B25/D25) -> 296.4113027 | G25: =IF(E25=0,0,C25/E25) -> 208.3269105 | H25: =IF(D25+E25=0,0,(B25+C25)/(D25+E25)) -> 266.8369331 | I25: 14614313.09 | J25: 778854.67 | K25: 275.78 | L25: -0.3489678385 | M25: -0.03242826506
A26: Oslo | B26: 18115076 | C26: 8509512 | D26: 67230 | E26: 37339 | F26: 269.4492935 | G26: =IF(E26=0,0,C26/E26) -> 227.8987654 | H26: 254.612629 | I26: 22002906.62 | J26: 423162.83 | K26: 270.21 | L26: =IF(I26=0,0,(C25-I26)/I26) -> -0.8463839338 | M26: -0.05772314503
A27: Landet i alt | B27: =SUM(B21:B26) -> 27629463.84 | C27: =SUM(C21:C26) -> 14204085.03 | D27: =SUM(D25:D26) -> 99328.6 | E27: =SUM(E21:E26) -> 64572.5 | F27: =IF(D27=0,0,B27/D27) -> 278.1622195 | G27: 219.9711182 | H27: 255.2365351 | I27: =SUM(I21:I26) -> 36617219.71 | J27: =SUM(J21:J26) -> 1202017.5 | K27: 261.11 | L27: =IF(I27=0,0,(B27-I27)/I27) -> -0.2454516192 | M27: -0.02249421645
A30: ="MÅLESTATISTIKK FOR RØRLEGGERE - GJENNOMSNITT HELE ÅRET "&FORS!$A$14 -> MÅLESTATISTIKK FOR RØRLEGGERE - GJENNOMSNITT HELE ÅRET 2018
B32: Målesum i kroner | D32: Timer | F32: ="Fortjeneste hele "&FORS!$A$14-0 -> Fortjeneste hele 2018 | I32: =" Hele året "&FORS!$A$14-1 -> Hele året 2017 | L32: Endringer i %
B33: Innmålt m/ | C33: Innmålt m/ | D33: Innmålt m/ | E33: Innmålt m/ | F33: Innmålt m/ | G33: Innmålt m/ | H33: Gjennom- | I33: Innmålt m/ | J33: Innmålt m/ | K33: Gjen.snitt | L33: Innmålt m/ | M33: Gjen.snitt
B34: overskudd | C34: underskudd | D34: overskudd | E34: underskudd | F34: overskudd | G34: underskudd | H34: snitt | I34: overskudd | J34: underskudd | K34: fortjeneste | L34: overskudd | M34: fortjeneste
A35: Bergen | F35: =IF(D35=0,0,B35/D35) -> 0 | G35: 0 | H35: =IF(D35+E35=0,0,(B35+C35)/(D35+E35)) -> 0 | I35: =I7+I21 -> 0 | J35: =J7+J21 -> 0 | L35: =IF(I35=0,0,(B35-I35)/I35) -> 0 | M35: =IF(K35=0,0,(H35-K35)/K35) -> 0
A36: Nordland | B36: =B8+B22 -> 0 | C36: =C8+C22 -> 2314573.07 | D36: =D22+D8 -> 0 | E36: =E22+E8 -> 11009 | F36: =IF(D36=0,0,B36/D36) -> 0 | G36: =IF(E36=0,0,C36/E36) -> 210.2437161 | H36: =IF(D36+E36=0,0,(B36+C36)/(D36+E36)) -> 210.2437161 | I36: =I8+I22 -> 0 | J36: 0 | L36: =IF(I36=0,0,(B36-I36)/I36) -> 0 | M36: =IF(K36=0,0,(H36-K36)/K36) -> 0
A37: Stavanger | F37: 0 | G37: 0 | H37: 0 | I37: 0 | J37: 0 | K37: 0 | L37: 0 | M37: 0
A38: Tromsø | F38: 0 | G38: 0 | H38: 0 | I38: 0 | J38: 0 | K38: 0 | L38: 0 | M38: 0
A39: Trondheim | B39: =B11+B25 -> 26015018.96 | C39: =C11+C25 -> 7514145.51 | D39: 83124.9 | E39: 38366.1 | F39: 312.9630106 | G39: 195.8537748 | H39: 275.9806444 | I39: 28592983.62 | J39: 3742066.72 | K39: 259.14 | L39: -0.09016074343 | M39: 0.06498666516
A40: Oslo | B40: =B12+B26 -> 27729253.72 | C40: 8509512 | D40: 96456.5 | E40: 37339 | F40: 287.4793686 | G40: 227.8987654 | H40: 270.8519025 | I40: 44967998.62 | J40: 423162.83 | K40: 260.74 | L40: -0.3833558404 | M40: 0.0387815544
A41: Landet i alt | B41: =SUM(B35:B40) -> 53744272.68 | C41: =SUM(C35:C40) -> 18338230.58 | D41: =SUM(D35:D40) -> 179581.4 | E41: =SUM(E35:E40) -> 86714.1 | F41: 299.2752739 | G41: 211.479224 | H41: 270.6861485 | I41: 73560982.24 | J41: 2886961.5 | K41: 257.97 | L41: -0.2693915845 | M41: 0.04929312908

Sheet TAKTEKKERE
A2: ="MÅLESTATISTIKK FOR TAKTEKKERE - 1. HALVÅR "&FORS!$A$14 -> MÅLESTATISTIKK FOR TAKTEKKERE - 1. HALVÅR 2018
B4: Målesum i kroner | D4: Timer | F4: ="Fortjeneste 1. halvår "&FORS!$A$14-0 -> Fortjeneste 1. halvår 2018 | I4: =" 1. halvår "&FORS!$A$14-1 -> 1. halvår 2017 | L4: Endringer i %
B5: Innmålt m/ | C5: Innmålt m/ | D5: Innmålt m/ | E5: Innmålt m/ | F5: Innmålt m/ | G5: Innmålt m/ | H5: Gjennom- | I5: Innmålt m/ | J5: Innmålt m/ | K5: Gjen.snitt | L5: Innmålt m/ | M5: Gjen.snitt
B6: overskudd | C6: underskudd | D6: overskudd | E6: underskudd | F6: overskudd | G6: underskudd | H6: snitt | I6: overskudd | J6: underskudd | K6: fortjeneste | L6: overskudd | M6: fortjeneste
A7: Agder | F7: =IF(D7=0,0,B7/D7) -> 0 | G7: =IF(E7=0,0,C7/E7) -> 0 | H7: =IF(D7+E7=0,0,(B7+C7)/(D7+E7)) -> 0 | I7: 183152 | K7: 285.28 | L7: =IF(I7=0,0,(B7-I7)/I7) -> -1 | M7: =IF(K7=0,0,(H7-K7)/K7) -> -1
A8: Haugesund | F8: =IF(D8=0,0,B8/D8) -> 0 | G8: =IF(E8=0,0,C8/E8) -> 0 | H8: =IF(D8+E8=0,0,(B8+C8)/(D8+E8)) -> 0 | K8: 0 | L8: =IF(I8=0,0,(B8-I8)/I8) -> 0 | M8: =IF(K8=0,0,(H8-K8)/K8) -> 0
A9: Glåmdal | F9: 0 | G9: 0 | H9: 0 | K9: 0 | L9: 0 | M9: 0
A10: Hamar og Omegn | B10: 995161.29 | D10: 2448.2 | F10: 406.4869251 | G10: 0 | H10: 406.4869251 | I10: 1524508 | J10: 44669 | K10: 346.93 | L10: -0.3472246194 | M10: 0.1716684204
A11: Bergen | B11: 511936.26 | D11: 1803.6 | F11: 283.8413506 | G11: 0 | H11: 283.8413506 | L11: 0 | M11: 0
A12: Nordland | F12: =IF(D12=0,0,B12/D12) -> 0 | G12: =IF(E12=0,0,C12/E12) -> 0 | H12: =IF(D12+E12=0,0,(B12+C12)/(D12+E12)) -> 0 | L12: =IF(I12=0,0,(B12-I12)/I12) -> 0 | M12: =IF(K12=0,0,(H12-K12)/K12) -> 0
A13: Stavanger | B13: =6290263.8-955449 -> 5334814.8 | C13: =254974.96+9189 -> 264163.96 | D13: =21065-3425 -> 17640 | E13: =1549.7+39.8 -> 1589.5 | F13: =IF(D13=0,0,B13/D13) -> 302.4271429 | G13: 166.1931173 | H13: 291.1661125 | I13: 4085720 | J13: 81085 | K13: 298.83 | L13: 0.3057220759 | M13: -0.02564631234
A14: Telemark | B14: 983000 | D14: 2642 | F14: 372.0666162 | G14: 0 | H14: 372.0666162 | I14: 481530 | K14: 346.18 | L14: 1.041409673 | M14: 0.07477790802
A15: Trondheim | B15: 2106259.95 | C15: 204172.03 | D15: 7371.2 | E15: 1161.6 | F15: 285.7417992 | G15: 175.7679322 | H15: 270.7706708 | I15: 2642287 | J15: 497773 | K15: 256.19 | L15: =IF(I15=0,0,(B15-I15)/I15) -> -0.2028648099 | M15: 0.05691350491
A16: Vestfold | F16: =IF(D16=0,0,B16/D16) -> 0 | G16: 0 | H16: =IF(D16+E16=0,0,(B16+C16)/(D16+E16)) -> 0 | L16: =IF(I16=0,0,(B16-I16)/I16) -> 0 | M16: 0
A17: Oslo | B17: 3278629.35 | C17: 191957.08 | D17: 9050.1 | E17: 1174.7 | F17: 362.2754831 | G17: 163.4094492 | H17: =IF(D17+E17=0,0,(B17+C17)/(D17+E17)) -> 339.4282949 | I17: 3757451.32 | J17: 307162.93 | K17: 305.51 | L17: -0.1274326476 | M17: 0.1110218812
A18: Landet i alt | B18: =SUM(B7:B17) -> 13209801.65 | C18: =SUM(C7:C17) -> 660293.07 | D18: =SUM(D7:D17) -> 40955.1 | E18: =SUM(E7:E17) -> 3925.8 | F18: 322.5435086 | G18: 168.1932523 | H18: =IF(D18+E18=0,0,(B18+C18)/(D18+E18)) -> 309.042259 | I18: =SUM(I7:I17) -> 12674648.32 | J18: =SUM(J7:J17) -> 930689.93 | K18: 295.13 | L18: 0.04222234152 | M18: 0.04713942655
A21: ="MÅLESTATISTIKK FOR TAKTEKKERE - 2. HALVÅR "&FORS!$A$14 -> MÅLESTATISTIKK FOR TAKTEKKERE - 2. HALVÅR 2018
B23: Målesum i kroner | D23: Timer | F23: ="Fortjeneste 2. halvår "&FORS!$A$14-0 -> Fortjeneste 2. halvår 2018 | I23: =" 2. halvår "&FORS!$A$14-1 -> 2. halvår 2017 | L23: Endringer i %
B24: Innmålt m/ | C24: Innmålt m/ | D24: Innmålt m/ | E24: Innmålt m/ | F24: Innmålt m/ | G24: Innmålt m/ | H24: Gjennom- | I24: Innmålt m/ | J24: Innmålt m/ | K24: Gjen.snitt | L24: Innmålt m/ | M24: Gjen.snitt
B25: overskudd | C25: underskudd | D25: overskudd | E25: underskudd | F25: overskudd | G25: underskudd | H25: snitt | I25: overskudd | J25: underskudd | K25: fortjeneste | L25: overskudd | M25: fortjeneste
A26: Agder | B26: 24574 | D26: 74.6 | F26: =IF(D26=0,0,B26/D26) -> 329.4101877 | G26: =IF(E26=0,0,C26/E26) -> 0 | H26: =IF(D26+E26=0,0,(B26+C26)/(D26+E26)) -> 329.4101877 | L26: =IF(I26=0,0,(B26-I26)/I26) -> 0 | M26: =IF(K26=0,0,(H26-K26)/K26) -> 0
A27: Haugesund | F27: =IF(D27=0,0,B27/D27) -> 0 | G27: =IF(E27=0,0,C27/E27) -> 0 | H27: =IF(D27+E27=0,0,(B27+C27)/(D27+E27)) -> 0 | K27: 0 | L27: =IF(I27=0,0,(B27-I27)/I27) -> 0 | M27: =IF(K27=0,0,(H27-K27)/K27) -> 0
A28: Glåmdal | F28: 0 | G28: 0 | H28: 0 | K28: 0 | L28: 0 | M28: 0
A29: Hamar og Omegn | B29: 554040 | D29: 1662.7 | F29: 333.2170566 | G29: 0 | H29: 333.2170566 | I29: 1111820.52 | J29: 9457 | K29: 330.98 | L29: =IF(I29=0,0,(B29-I29)/I29) -> -0.50168216 | M29: 0.00675888753
A30: Bergen | B30: 649812.63 | D30: 2221.6 | F30: =IF(D30=0,0,B30/D30) -> 292.4975828 | G30: =IF(E30=0,0,C30/E30) -> 0 | H30: =IF(D30+E30=0,0,(B30+C30)/(D30+E30)) -> 292.4975828 | L30: 0 | M30: 0
A31: Nordland | F31: =IF(D31=0,0,B31/D31) -> 0 | G31: =IF(E31=0,0,C31/E31) -> 0 | H31: =IF(D31+E31=0,0,(B31+C31)/(D31+E31)) -> 0 | K31: 0 | L31: 0 | M31: 0
A32: Stavanger | B32: =5204193 -> 5204193 | C32: =2374+13121+234371+107631+30041+115884 -> 503422 | D32: =17526 -> 17526 | E32: =35+57+1232+647+212+705 -> 2888 | F32: 296.9412872 | G32: 174.315097 | H32: 279.5931714 | I32: 4230897 | J32: 109573 | K32: 306.57 | L32: =IF(I32=0,0,(B32-I32)/I32) -> 0.2300448345 | M32: -0.08799565726
A33: Telemark | B33: 663952 | D33: 1990 | F33: 333.6442211 | G33: =IF(E33=0,0,C33/E33) -> 0 | H33: =IF(D33+E33=0,0,(B33+C33)/(D33+E33)) -> 333.6442211 | I33: 942761 | K33: 351.78 | L33: =IF(I33=0,0,(B33-I33)/I33) -> -0.2957366713 | M33: -0.05155432058
A34: Trondheim | B34: 4998637.76 | C34: 994113.95 | D34: 14784.1 | E34: 3870.8 | F34: =IF(D34=0,0,B34/D34) -> 338.1090334 | G34: =IF(E34=0,0,C34/E34) -> 256.8238995 | H34: =IF(D34+E34=0,0,(B34+C34)/(D34+E34)) -> 321.2427679 | I34: 2315836 | J34: 736755 | K34: 289.32 | L34: =IF(I34=0,0,(B34-I34)/I34) -> 1.158459304 | M34: 0.1103372316
A35: Vestfold | F35: =IF(D35=0,0,B35/D35) -> 0 | G35: 0 | H35: =IF(D35+E35=0,0,(B35+C35)/(D35+E35)) -> 0 | L35: 0 | M35: 0
A36: Oslo | B36: 2224430.92 | C36: 80279.76 | D36: 6231.4 | E36: 385.8 | F36: =IF(D36=0,0,B36/D36) -> 356.9712938 | G36: 208.0864697 | H36: 348.2909206 | I36: 4529188.72 | J36: 209988.95 | K36: 335.39 | L36: =IF(I36=0,0,(B36-I36)/I36) -> -0.5088676897 | M36: 0.03846543019
A37: Landet i alt | B37: =SUM(B26:B36) -> 14319640.31 | C37: =SUM(C26:C36) -> 1577815.71 | D37: =SUM(D26:D36) -> 44490.4 | E37: =SUM(E32:E36) -> 7144.6 | F37: =IF(D37=0,0,B37/D37) -> 321.8591047 | G37: =IF(E37=0,0,C37/E37) -> 220.8403144 | H37: =IF(D37+E37=0,0,(B37+C37)/(D37+E37)) -> 307.8813987 | I37: =SUM(I26:I36) -> 13130503.24 | J37: =SUM(J26:J36) -> 1065773.95 | K37: 298.87 | L37: 0.09056294708 | M37: 0.03015156645
A40: ="MÅLESTATISTIKK FOR TAKTEKKERE - GJENNOMSNITT HELE ÅRET "&FORS!$A$14 -> MÅLESTATISTIKK FOR TAKTEKKERE - GJENNOMSNITT HELE ÅRET 2018
B42: Målesum i kroner | D42: Timer | F42: ="Fortjeneste hele "&FORS!$A$14-0 -> Fortjeneste hele 2018 | I42: =" Hele året "&FORS!$A$14-1 -> Hele året 2017 | L42: Endringer i %
B43: Innmålt m/ | C43: Innmålt m/ | D43: Innmålt m/ | E43: Innmålt m/ | F43: Innmålt m/ | G43: Innmålt m/ | H43: Gjennom- | I43: Innmålt m/ | J43: Innmålt m/ | K43: Gjen.snitt | L43: Innmålt m/ | M43: Gjen.snitt
B44: overskudd | C44: underskudd | D44: overskudd | E44: underskudd | F44: overskudd | G44: underskudd | H44: snitt | I44: overskudd | J44: underskudd | K44: fortjeneste | L44: overskudd | M44: fortjeneste
A45: Agder | B45: =B7+B26 -> 24574 | C45: =C7+C26 -> 0 | D45: =D7+D26 -> 74.6 | E45: =E7+E26 -> 0 | F45: =IF(D45=0,0,B45/D45) -> 329.4101877 | G45: =IF(E45=0,0,C45/E45) -> 0 | H45: =IF(D45+E45=0,0,(B45+C45)/(D45+E45)) -> 329.4101877 | I45: 174303 | J45: 77406 | K45: 238.02 | L45: =IF(I45=0,0,(B45-I45)/I45) -> -0.8590156222 | M45: =IF(K45=0,0,(H45-K45)/K45) -> 0.3839601196
A46: Haugesund | B46: =B8+B27 -> 0 | D46: =D8+D27 -> 0 | E46: 0 | F46: =IF(D46=0,0,B46/D46) -> 0 | G46: =IF(E46=0,0,C46/E46) -> 0 | H46: =IF(D46+E46=0,0,(B46+C46)/(D46+E46)) -> 0 | I46: =I8+I27 -> 0 | J46: 0 | K46: 0 | L46: =IF(I46=0,0,(B46-I46)/I46) -> 0 | M46: =IF(K46=0,0,(H46-K46)/K46) -> 0
A47: Glåmdal | B47: 0 | C47: 0 | D47: 0 | E47: 0 | F47: 0 | G47: 0 | H47: 0 | I47: 0 | J47: 0 | K47: 0 | L47: 0 | M47: 0
A48: Hamar og Omegn | B48: 1549201.29 | C48: 0 | D48: 4110.9 | E48: 0 | F48: 376.8520981 | G48: 0 | H48: 376.8520981 | I48: 2533335 | K48: 328.45 | L48: -0.3884735773 | M48: 0.1473651943
A49: Bergen | B49: 1161748.89 | C49: 0 | D49: 4025.2 | E49: 0 | F49: 288.6189233 | G49: 0 | H49: 288.6189233 | J49: 0 | L49: 0 | M49: 0
A50: Nordland | B50: 0 | C50: 0 | D50: 0 | E50: 0 | F50: =IF(D50=0,0,B50/D50) -> 0 | G50: =IF(E50=0,0,C50/E50) -> 0 | H50: =IF(D50+E50=0,0,(B50+C50)/(D50+E50)) -> 0 | I50: 0 | J50: 0 | L50: 0 | M50: 0
A51: Stavanger | B51: 10539007.8 | C51: =C13+C32 -> 767585.96 | D51: 35166 | E51: 4477.5 | F51: 299.693107 | G51: 171.4318169 | H51: 285.2067492 | I51: 7338950 | J51: 226322 | K51: 308.11 | L51: =IF(I51=0,0,(B51-I51)/I51) -> 0.4360375531 | M51: -0.07433465596
A52: Telemark | B52: 1646952 | C52: =C14+C33 -> 0 | D52: 4632 | E52: 0 | F52: 355.5595855 | G52: 0 | H52: 355.5595855 | I52: 2794281.79 | J52: 0 | K52: 336.55 | L52: =IF(I52=0,0,(B52-I52)/I52) -> -0.4105991722 | M52: 0.05648368888
A53: Trondheim | B53: 7104897.71 | C53: =C15+C34 -> 1198285.98 | D53: 22155.3 | E53: 5032.4 | F53: =IF(D53=0,0,B53/D53) -> 320.6861433 | G53: =IF(E53=0,0,C53/E53) -> 238.1142159 | H53: 305.4022109 | I53: 7638177 | J53: 1251235 | K53: 271.38 | L53: -0.06981761355 | M53: 0.1253674218
A54: Vestfold | B54: 0 | C54: 0 | D54: 0 | E54: 0 | F54: =IF(D54=0,0,B54/D54) -> 0 | G54: 0 | H54: 0 | J54: 0 | L54: 0 | M54: 0
A55: Oslo | B55: =B17+B36 -> 5503060.27 | C55: =C17+C36 -> 272236.84 | D55: 15281.5 | E55: 1560.5 | F55: 360.1125721 | G55: 174.4548798 | H55: 342.9104091 | I55: 6201400.08 | J55: 768686.31 | K55: 299.32 | L55: =IF(I55=0,0,(B55-I55)/I55) -> -0.1126100237 | M55: =IF(K55=0,0,(H55-K55)/K55) -> 0.1456314616
A56: Landet i alt | B56: =SUM(B45:B55) -> 27529441.96 | C56: =SUM(C45:C55) -> 2238108.78 | D56: =SUM(D45:D55) -> 85445.5 | E56: =E18+E37 -> 11070.4 | F56: =IF(D56=0,0,B56/D56) -> 322.1871481 | G56: =IF(E56=0,0,C56/E56) -> 202.1705431 | H56: =IF(D56+E56=0,0,(B56+C56)/(D56+E56)) -> 308.4212108 | I56: 25805151.56 | J56: =J18+J37 -> 1996463.88 | K56: 296.96 | L56: =IF(I56=0,0,(B56-I56)/I56) -> 0.06681961918 | M56: 0.03859513337

Sheet MURERE
A2: ="MÅLESTATISTIKK FOR MURERE - 1. HALVÅR "&FORS!$A$14 -> MÅLESTATISTIKK FOR MURERE - 1. HALVÅR 2018
B4: Målesum i kroner | D4: Timer | F4: ="Fortjeneste 1. halvår "&FORS!$A$14-0 -> Fortjeneste 1. halvår 2018 | I4: =" 1. halvår "&FORS!$A$14-1 -> 1. halvår 2017 | L4: Endringer i %
B5: Innmålt m/ | C5: Innmålt m/ | D5: Innmålt m/ | E5: Innmålt m/ | F5: Innmålt m/ | G5: Innmålt m/ | H5: Gjennom- | I5: Innmålt m/ | J5: Innmålt m/ | K5: Gjen.snitt | L5: Innmålt m/ | M5: Gjen.snitt
B6: overskudd | C6: underskudd | D6: overskudd | E6: underskudd | F6: overskudd | G6: underskudd | H6: snitt | I6: overskudd | J6: underskudd | K6: fortjeneste | L6: overskudd | M6: fortjeneste
A7: Agder | F7: =IF(D7=0,0,B7/D7) -> 0 | G7: =IF(E7=0,0,C7/E7) -> 0 | H7: =IF(D7+E7=0,0,(B7+C7)/(D7+E7)) -> 0 | K7: 0 | L7: =IF(I7=0,0,(B7-I7)/I7) -> 0 | M7: =IF(K7=0,0,(H7-K7)/K7) -> 0
A8: Bergen | B8: 0 | F8: =IF(D8=0,0,B8/D8) -> 0 | G8: =IF(E8=0,0,C8/E8) -> 0 | H8: =IF(D8+E8=0,0,(B8+C8)/(D8+E8)) -> 0 | I8: 792063.31 | K8: 263.15 | L8: =IF(I8=0,0,(B8-I8)/I8) -> -1 | M8: =IF(K8=0,0,(H8-K8)/K8) -> -1
A9: Glåmdal | F9: 0 | G9: 0 | H9: 0 | K9: 0 | L9: 0 | M9: 0
A10: Hamar og Omegn | F10: 0 | G10: 0 | H10: =IF(D10+E10=0,0,(B10+C10)/(D10+E10)) -> 0 | L10: 0 | M10: 0
A11: Nordland | F11: 0 | G11: 0 | H11: 0 | K11: 0 | L11: 0 | M11: 0
A12: Stavanger | B12: 955449 | D12: 3425 | F12: =IF(D12=0,0,B12/D12) -> 278.9632117 | G12: 0 | H12: 278.9632117 | I12: 1437365 | K12: 323.37 | L12: -0.3352774 | M12: -0.1373250095
A13: Tromsø | F13: 0 | H13: 0 | K13: 0 | L13: 0 | M13: 0
A14: Telemark | F14: 0 | G14: 0 | H14: 0 | K14: 0 | L14: 0 | M14: 0
A15: Trondheim | B15: 4621229.53 | C15: 418829.91 | D15: 15514.01 | E15: 1482.95 | F15: =IF(D15=0,0,B15/D15) -> 297.8746004 | G15: =IF(E15=0,0,C15/E15) -> 282.4302303 | H15: =IF(D15+E15=0,0,(B15+C15)/(D15+E15)) -> 296.5271107 | I15: 3652290 | J15: 433063 | K15: 264.25 | L15: =IF(I15=0,0,(B15-I15)/I15) -> 0.2652964387 | M15: 0.1221461144
A16: Vestfold | F16: 0 | G16: 0 | H16: 0 | K16: 0 | L16: 0 | M16: 0
A17: Oslo | B17: 11878661 | D17: 42064 | F17: 282.3949458 | G17: 0 | H17: 282.3949458 | I17: 9791594 | J17: 1545523 | K17: 261.68 | L17: =IF(I17=0,0,(B17-I17)/I17) -> 0.2131488499 | M17: 0.07916136425
A18: Østfold | B18: 1039021.5 | C18: 0 | D18: 3113 | F18: 333.7685512 | G18: 0 | H18: 333.7685512 | I18: 1347036.5 | K18: 281.18 | L18: =IF(I18=0,0,(B18-I18)/I18) -> -0.228661213 | M18: 0.1870280647
A19: Landet i alt | B19: =SUM(B7:B18) -> 18494361.03 | C19: =SUM(C7:C18) -> 418829.91 | D19: =SUM(D7:D18) -> 64116.01 | E19: =SUM(E7:E18) -> 1482.95 | F19: =IF(D19=0,0,B19/D19) -> 288.4515276 | G19: =IF(E19=0,0,C19/E19) -> 282.4302303 | H19: =IF(D19+E19=0,0,(B19+C19)/(D19+E19)) -> 288.3154084 | I19: =SUM(I8:I18) -> 17020348.81 | J19: =SUM(J8:J18) -> 1978586 | K19: 270.43 | L19: =IF(I19=0,0,(B19-I19)/I19) -> 0.08660293843 | M19: =IF(K19=0,0,(H19-K19)/K19) -> 0.06613692399
A22: ="MÅLESTATISTIKK FOR MURERE - 2. HALVÅR "&FORS!$A$14 -> MÅLESTATISTIKK FOR MURERE - 2. HALVÅR 2018
B24: Målesum i kroner | D24: Timer | F24: ="Fortjeneste 2. halvår "&FORS!$A$14-0 -> Fortjeneste 2. halvår 2018 | I24: =" 2. halvår "&FORS!$A$14-1 -> 2. halvår 2017 | L24: Endringer i %
B25: Innmålt m/ | C25: Innmålt m/ | D25: Innmålt m/ | E25: Innmålt m/ | F25: Innmålt m/ | G25: Innmålt m/ | H25: Gjennom- | I25: Innmålt m/ | J25: Innmålt m/ | K25: Gjen.snitt | L25: Innmålt m/ | M25: Gjen.snitt
B26: overskudd | C26: underskudd | D26: overskudd | E26: underskudd | F26: overskudd | G26: underskudd | H26: snitt | I26: overskudd | J26: underskudd | K26: fortjeneste | L26: overskudd | M26: fortjeneste
A27: Agder | F27: =IF(D27=0,0,B27/D27) -> 0 | G27: =IF(E27=0,0,C27/E27) -> 0 | H27: =IF(D27+E27=0,0,(B27+C27)/(D27+E27)) -> 0 | K27: 0 | L27: =IF(I27=0,0,(B27-I27)/I27) -> 0 | M27: =IF(K27=0,0,(H27-K27)/K27) -> 0
A28: Bergen | F28: 0 | G28: =IF(E28=0,0,C28/E28) -> 0 | H28: =IF(D28+E28=0,0,(B28+C28)/(D28+E28)) -> 0 | I28: 181085.32 | K28: 283.39 | L28: =IF(I28=0,0,(B28-I28)/I28) -> -1 | M28: =IF(K28=0,0,(H28-K28)/K28) -> -1
A29: Glåmdal | F29: 0 | G29: 0 | H29: 0 | K29: 0 | L29: 0 | M29: 0
A30: Hamar og Omegn | F30: 0 | G30: 0 | H30: 0 | L30: 0 | M30: 0
A31: Nordland | F31: 0 | G31: 0 | H31: 0 | K31: 0 | L31: 0 | M31: 0
A32: Stavanger | B32: 1105862 | D32: 3689 | F32: 299.7728382 | G32: 0 | H32: 299.7728382 | I32: 1102908 | K32: 323.91 | L32: =IF(I32=0,0,(B32-I32)/I32) -> 0.002678373899 | M32: -0.07451811254
A33: Tromsø | F33: 0 | L33: 0 | M33: 0
A34: Telemark | F34: 0 | G34: 0 | H34: 0 | K34: 0 | L34: 0 | M34: 0
A35: Trondheim | B35: 4467553.44 | C35: 227917.91 | D35: 15010.18 | E35: 1127.08 | F35: 297.6349011 | G35: =IF(E35=0,0,C35/E35) -> 202.2198158 | H35: =IF(D35+E35=0,0,(B35+C35)/(D35+E35)) -> 290.9707937 | I35: 5649468 | K35: 279.5 | L35: =IF(I35=0,0,(B35-I35)/I35) -> -0.2092081166 | M35: 0.04104040672
A36: Vestfold | F36: 0 | G36: 0 | H36: 0 | K36: 0 | L36: 0 | M36: 0
A37: Oslo | B37: 8436850 | D37: 26749 | F37: 315.4080526 | G37: 0 | H37: 315.4080526 | I37: 10918419 | K37: 281.17 | L37: =IF(I37=0,0,(B37-I37)/I37) -> -0.2272828145 | M37: 0.121769935
A38: Østfold | B38: 1073851.5 | C38: 0 | D38: 3224 | F38: 333.0804901 | G38: 0 | H38: 333.0804901 | I38: 714960 | J38: 2611.5 | K38: 273.77 | L38: =IF(I38=0,0,(B38-I38)/I38) -> 0.5019742363 | M38: 0.2166434966
A39: Landet i alt | B39: =SUM(B28:B38) -> 15084116.94 | D39: =SUM(D28:D38) -> 48672.18 | F39: =IF(D39=0,0,B39/D39) -> 309.9124991 | G39: =IF(E39=0,0,C39/E39) -> 0 | H39: =IF(D39+E39=0,0,(B39+C39)/(D39+E39)) -> 309.9124991 | I39: =SUM(I27:I38) -> 18566840.32 | J39: =SUM(J35:J38) -> 2611.5 | K39: 278.04 | L39: -0.1875776018 | M39: 0.1146327834
A42: ="MÅLESTATISTIKK FOR MURERE - GJENNOMSNITT HELE ÅRET "&FORS!$A$14 -> MÅLESTATISTIKK FOR MURERE - GJENNOMSNITT HELE ÅRET 2018
B44: Målesum i kroner | D44: Timer | F44: ="Fortjeneste hele "&FORS!$A$14-0 -> Fortjeneste hele 2018 | I44: =" Hele året "&FORS!$A$14-1 -> Hele året 2017 | L44: Endringer i %
B45: Innmålt m/ | C45: Innmålt m/ | D45: Innmålt m/ | E45: Innmålt m/ | F45: Innmålt m/ | G45: Innmålt m/ | H45: Gjennom- | I45: Innmålt m/ | J45: Innmålt m/ | K45: Gjen.snitt | L45: Innmålt m/ | M45: Gjen.snitt
B46: overskudd | C46: underskudd | D46: overskudd | E46: underskudd | F46: overskudd | G46: underskudd | H46: snitt | I46: overskudd | J46: underskudd | K46: fortjeneste | L46: overskudd | M46: fortjeneste
A47: Agder | B47: =B7+B27 -> 0 | C47: =C7+C27 -> 0 | D47: 0 | E47: 0 | F47: =IF(D47=0,0,B47/D47) -> 0 | G47: =IF(E47=0,0,C47/E47) -> 0 | H47: =IF(D47+E47=0,0,(B47+C47)/(D47+E47)) -> 0 | I47: 0 | J47: 0 | K47: 0 | L47: =IF(I47=0,0,(B47-I47)/I47) -> 0 | M47: =IF(K47=0,0,(H47-K47)/K47) -> 0
A48: Bergen | B48: =B8+B28 -> 0 | C48: 0 | D48: 0 | E48: 0 | F48: =IF(D48=0,0,B48/D48) -> 0 | G48: =IF(E48=0,0,C48/E48) -> 0 | H48: =IF(D48+E48=0,0,(B48+C48)/(D48+E48)) -> 0 | I48: 930717 | J48: 0 | K48: 260.03 | L48: =IF(I48=0,0,(B48-I48)/I48) -> -1 | M48: =IF(K48=0,0,(H48-K48)/K48) -> -1
A49: Glåmdal | B49: 0 | C49: 0 | D49: 0 | E49: 0 | F49: 0 | G49: 0 | H49: 0 | I49: 0 | J49: 0 | K49: 0 | L49: 0 | M49: 0
A50: Hamar og Omegn | B50: 0 | C50: 0 | D50: 0 | E50: 0 | F50: 0 | G50: 0 | H50: 0 | I50: 204635 | J50: 0 | K50: 377.69 | L50: -1 | M50: -1
A51: Nordland | B51: 0 | C51: 0 | D51: 0 | E51: 0 | F51: 0 | G51: 0 | H51: 0 | I51: 0 | J51: 0 | K51: 0 | L51: 0 | M51: 0
A52: Stavanger | B52: 2061311 | C52: 0 | D52: 7114 | E52: 0 | F52: 289.7541468 | G52: 0 | H52: 289.7541468 | I52: 1547101 | J52: 0 | K52: 313.08 | L52: =IF(I52=0,0,(B52-I52)/I52) -> 0.3323700263 | M52: -0.07450445013
A53: Tromsø | B53: 0 | C53: 0 | D53: 0 | E53: 0 | F53: 0 | G53: 0 | H53: 0 | I53: 0 | J53: 0 | K53: 0 | L53: 0 | M53: 0
A54: Telemark | B54: 0 | C54: 0 | D54: 0 | E54: 0 | F54: 0 | G54: 0 | H54: 0 | I54: 0 | J54: 0 | K54: 0 | L54: 0 | M54: 0
A55: Trondheim | B55: =B15+B35 -> 9088782.97 | C55: 646747.82 | D55: 30524.19 | E55: 2610.03 | F55: 297.756729 | G55: =IF(E55=0,0,C55/E55) -> 247.7932514 | H55: =IF(D55+E55=0,0,(B55+C55)/(D55+E55)) -> 293.8210343 | I55: =I15+I35 -> 9301758 | J55: 196.75 | K55: 261.24 | L55: =IF(I55=0,0,(B55-I55)/I55) -> -0.02289621274 | M55: 0.1247168667
A56: Vestfold | B56: 0 | C56: 0 | D56: 0 | E56: 0 | F56: 0 | G56: 0 | H56: 0 | I56: 0 | K56: 0 | L56: 0 | M56: 0
A57: Oslo | B57: =B17+B37 -> 20315511 | C57: =C17+C37 -> 0 | D57: =D17+D37 -> 68813 | E57: =E17+E37 -> 0 | F57: 295.2278058 | G57: 0 | H57: 295.2278058 | I57: 17924687 | J57: 202.36 | K57: 282.22 | L57: 0.1333816317 | M57: 0.04609101337
A58: Østfold | B58: =B18+B38 -> 2112873 | C58: 0 | D58: =D18+D38 -> 6337 | E58: 0 | F58: 333.4184946 | G58: 0 | H58: 333.4184946 | I58: 5622722 | J58: 0 | K58: 290.6 | L58: =IF(I58=0,0,(B58-I58)/I58) -> -0.6242259532 | M58: =IF(K58=0,0,(H58-K58)/K58) -> 0.1473451292
A59: Landet i alt | B59: =SUM(B47:B58) -> 33578477.97 | C59: =SUM(C47:C58) -> 646747.82 | D59: =SUM(D47:D58) -> 112788.19 | E59: =SUM(E47:E58) -> 2610.03 | F59: =IF(D59=0,0,B59/D59) -> 297.7127124 | G59: =IF(E59=0,0,C59/E59) -> 247.7932514 | H59: =IF(D59+E59=0,0,(B59+C59)/(D59+E59)) -> 296.5836543 | I59: =SUM(I48:I58) -> 35531620 | J59: =IF(E59=0,0,C59/E59) -> 247.7932514 | K59: 274.21 | L59: -0.05496912412 | M59: 0.08159313783

Sheet BLIKK OG VENTILASJON
A2: ="MÅLESTATISTIKK FOR BLIKK- OG VENTILASJONSARBEID - 1. HALVÅR "&FORS!$A$14 -> MÅLESTATISTIKK FOR BLIKK- OG VENTILASJONSARBEID - 1. HALVÅR 2018
B4: Målesum i kroner | D4: Timer | F4: ="Fortjeneste 1. halvår "&FORS!$A$14-0 -> Fortjeneste 1. halvår 2018 | I4: =" 1. halvår "&FORS!$A$14-1 -> 1. halvår 2017 | L4: Endringer i %
B5: Innmålt m/ | C5: Innmålt m/ | D5: Innmålt m/ | E5: Innmålt m/ | F5: Innmålt m/ | G5: Innmålt m/ | H5: Gjennom- | I5: Innmålt m/ | J5: Innmålt m/ | K5: Gjen.snitt | L5: Innmålt m/ | M5: Gjen.snitt
B6: overskudd | C6: underskudd | D6: overskudd | E6: underskudd | F6: overskudd | G6: underskudd | H6: snitt | I6: overskudd | J6: underskudd | K6: fortjeneste | L6: overskudd | M6: fortjeneste
A7: Nordland | F7: =IF(D7=0,0,B7/D7) -> 0 | G7: 0 | H7: =IF(D7+E7=0,0,(B7+C7)/(D7+E7)) -> 0 | L7: =IF(I7=0,0,(B7-I7)/I7) -> 0 | M7: =IF(K7=0,0,(H7-K7)/K7) -> 0
A8: Stavanger | G8: 0 | H8: =IF(D8+E8=0,0,(B8+C8)/(D8+E8)) -> 0 | L8: =IF(I8=0,0,(B8-I8)/I8) -> 0 | M8: =IF(K8=0,0,(H8-K8)/K8) -> 0
A9: Oslo | G9: 0 | H9: =IF(D9+E9=0,0,(B9+C9)/(D9+E9)) -> 0 | L9: 0 | M9: 0
A10: Landet i alt | B10: =SUM(B7:B9) -> 0 | C10: =SUM(C7:C9) -> 0 | D10: =SUM(D7:D9) -> 0 | E10: =SUM(E7:E9) -> 0 | F10: 0 | G10: 0 | H10: =IF(D10+E10=0,0,(B10+C10)/(D10+E10)) -> 0 | L10: 0 | M10: 0
L11: 0 | M11: 0
L12: 0 | M12: 0
A13: ="MÅLESTATISTIKK FOR BLIKK- OG VENTILASJONSARBEID - 2. HALVÅR "&FORS!$A$14 -> MÅLESTATISTIKK FOR BLIKK- OG VENTILASJONSARBEID - 2. HALVÅR 2018 | L13: 0 | M13: 0
B15: Målesum i kroner | D15: Timer | F15: ="Fortjeneste 2. halvår "&FORS!$A$14-0 -> Fortjeneste 2. halvår 2018 | I15: =" 2. halvår "&FORS!$A$14-1 -> 2. halvår 2017 | L15: Endringer i %
B16: Innmålt m/ | C16: Innmålt m/ | D16: Innmålt m/ | E16: Innmålt m/ | F16: Innmålt m/ | G16: Innmålt m/ | H16: Gjennom- | I16: Innmålt m/ | J16: Innmålt m/ | K16: Gjen.snitt | L16: Innmålt m/ | M16: Gjen.snitt
B17: overskudd | C17: underskudd | D17: overskudd | E17: underskudd | F17: overskudd | G17: underskudd | H17: snitt | I17: overskudd | J17: underskudd | K17: fortjeneste | L17: overskudd | M17: fortjeneste
A18: Nordland | F18: =IF(D18=0,0,B18/D18) -> 0 | G18: 0 | H18: =IF(D18+E18=0,0,(B18+C18)/(D18+E18)) -> 0 | L18: =IF(I18=0,0,(B18-I18)/I18) -> 0 | M18: =IF(K18=0,0,(H18-K18)/K18) -> 0
A19: Stavanger | F19: 0 | G19: 0 | H19: =IF(D19+E19=0,0,(B19+C19)/(D19+E19)) -> 0 | L19: =IF(I19=0,0,(B19-I19)/I19) -> 0 | M19: =IF(K19=0,0,(H19-K19)/K19) -> 0
A20: Oslo | F20: 0 | G20: 0 | H20: =IF(D20+E20=0,0,(B20+C20)/(D20+E20)) -> 0 | L20: 0 | M20: 0
A21: Landet i alt | B21: =SUM(B18:B20) -> 0 | C21: =SUM(C18:C20) -> 0 | D21: =SUM(D18:D20) -> 0 | E21: =SUM(C18:C20) -> 0 | F21: 0 | G21: 0 | H21: =IF(D21+E21=0,0,(B21+C21)/(D21+E21)) -> 0 | L21: 0 | M21: 0
A24: ="MÅLESTATISTIKK FOR BLIKK- OG VENTILASJONSARBEID - GJENNOMSNITT HELE ÅRET "&FORS!$A$14 -> MÅLESTATISTIKK FOR BLIKK- OG VENTILASJONSARBEID - GJENNOMSNITT HELE ÅRET 2018
B26: Målesum i kroner | D26: Timer | F26: ="Fortjeneste hele "&FORS!$A$14-0 -> Fortjeneste hele 2018 | I26: =" Hele året "&FORS!$A$14-1 -> Hele året 2017 | L26: Endringer i %
B27: Innmålt m/ | C27: Innmålt m/ | D27: Innmålt m/ | E27: Innmålt m/ | F27: Innmålt m/ | G27: Innmålt m/ | H27: Gjennom- | I27: Innmålt m/ | J27: Innmålt m/ | K27: Gjen.snitt | L27: Innmålt m/ | M27: Gjen.snitt
B28: overskudd | C28: underskudd | D28: overskudd | E28: underskudd | F28: overskudd | G28: underskudd | H28: snitt | I28: overskudd | J28: underskudd | K28: fortjeneste | L28: overskudd | M28: fortjeneste
A29: Nordland | B29: =B7+B18 -> 0 | C29: 0 | D29: 0 | E29: 0 | F29: =IF(D29=0,0,B29/D29) -> 0 | G29: 0 | H29: =IF(D29+E29=0,0,(B29+C29)/(D29+E29)) -> 0 | L29: =IF(I29=0,0,(B29-I29)/I29) -> 0 | M29: =IF(K29=0,0,(H29-K29)/K29) -> 0
A30: Stavanger | B30: 0 | C30: 0 | D30: 0 | E30: 0 | F30: 0 | G30: 0 | H30: =IF(D30+E30=0,0,(B30+C30)/(D30+E30)) -> 0 | L30: =IF(I30=0,0,(B30-I30)/I30) -> 0 | M30: =IF(K30=0,0,(H30-K30)/K30) -> 0
A31: Oslo | B31: 0 | C31: 0 | D31: 0 | E31: 0 | F31: 0 | G31: 0 | H31: =IF(D31+E31=0,0,(B31+C31)/(D31+E31)) -> 0 | L31: 0 | M31: 0
A32: Landet i alt | B32: =SUM(B29:B31) -> 0 | C32: =SUM(C29:C31) -> 0 | D32: =SUM(D29:D31) -> 0 | E32: =SUM(E29:E31) -> 0 | F32: 0 | G32: 0 | H32: =IF(D32+E32=0,0,(B32+C32)/(D32+E32)) -> 0 | L32: 0 | M32: 0

Sheet ISOLATØR
A2: ="MÅLESTATISTIKK FOR ISOLATØRER - "&FORS!$A$14 -> MÅLESTATISTIKK FOR ISOLATØRER - 2018
B4: Målesum i kroner | D4: Timer | F4: ="Fortjeneste "&FORS!$A$14-0 -> Fortjeneste 2018 | I4: =FORS!$A$14-1 -> 2017 | L4: Endringer i %
B5: Innmålt m/ | C5: Innmålt m/ | D5: Innmålt m/ | E5: Innmålt m/ | F5: Innmålt m/ | G5: Innmålt m/ | H5: Gjennom- | I5: Innmålt m/ | J5: Innmålt m/ | K5: Gjen.snitt | L5: Innmålt m/ | M5: Gjen.snitt
B6: overskudd | C6: underskudd | D6: overskudd | E6: underskudd | F6: overskudd | G6: underskudd | H6: snitt | I6: overskudd | J6: underskudd | K6: fortjeneste | L6: overskudd | M6: fortjeneste
A7: Landet i alt 1. halvår | B7: 0 | F7: =IF(D7=0,0,B7/D7) -> 0 | G7: 0 | H7: =IF(D7+E7=0,0,(B7+C7)/(D7+E7)) -> 0 | I7: 0 | J7: 0 | K7: 0 | L7: =IF(I7=0,0,(B7-I7)/I7) -> 0 | M7: =IF(K7=0,0,(H7-K7)/K7) -> 0
A8: Landet i alt 2. halvår | F8: =IF(D8=0,0,B8/D8) -> 0 | G8: =IF(E8=0,0,C8/E8) -> 0 | H8: =IF(D8+E8=0,0,(B8+C8)/(D8+E8)) -> 0 | J8: 0 | L8: =IF(I8=0,0,(B8-I8)/I8) -> 0 | M8: =IF(K8=0,0,(H8-K8)/K8) -> 0
A9: ="Landet i alt "&FORS!A14 -> Landet i alt 2018 | B9: =SUM(B7:B8) -> 0 | C9: =SUM(C7:C8) -> 0 | D9: =SUM(D7:D8) -> 0 | E9: =SUM(E7:E8) -> 0 | F9: 0 | G9: 0 | H9: =IF(D9+E9=0,0,(B9+C9)/(D9+E9)) -> 0 | I9: =SUM(I7:I8) -> 0 | J9: =SUM(J7:J8) -> 0 | L9: 0 | M9: 0
